Workbook

Sheet tbl (hidden)
D4: Molecular Weight of Various Reagents and NO₂
D5: No. | E5: Component | F5: Molecular Weight
F6: Symbol | G6: lb/mole
D7: 1 | E7: 2 | F7: 3 | G7: 4
D8: 1 | E8: ammonia | F8: MNH3 | G8: 17.03
D9: =1+D8 -> 2 | E9: urea | F9: Murea | G9: 60.06
D10: =1+D9 -> 3 | E10: NO₂ | F10: MNO2 | G10: 46.01
D13: Various Reagent Aqueous Solutions and Water Selected Properties
D14: No. | E14: Component | F14: Concentration | G14: Density | I14: Heat of Vap
F15: c | G15: ρ | H15: ρ | I15: Hv
F16: % by weight | G16: lb/ft³ | H16: lb/gal | I16: Btu/lb
D17: 1 | E17: =1+D17 -> 2 | F17: =1+E17 -> 3 | G17: =1+F17 -> 4 | H17: =1+G17 -> 5 | I17: =1+H17 -> 6
D18: 1 | E18: ammonia 29% | F18: 29 | G18: 56
D19: =1+D18 -> 2 | E19: urea 50% | F19: 50 | G19: 71
D20: =1+D19 -> 3 | E20: urea 10% | F20: 10 | I20: 900
D21: =1+D20 -> 4 | E21: water | F21: - | G21: =+H21*7.481 -> 62.428945 | H21: 8.345 | I21: 900
G23: 7.481 | H23: gal/ft³
D25: EQUIPMENT BOOK LIFE [1]
D26: No. | E26: Technology | F26: Book Life
F27: Yrs
D28: 1 | E28: 2 | F28: 3
D29: 1 | E29: Combined cycle | F29: 30
D30: =1+D29 -> 2 | E30: Combustion turbine | F30: 30
D31: =1+D30 -> 3 | E31: Engine | F31: 30 | G31: assumed
D32: 4 | E32: Boiler | F32: 40
D37: FUELS
D39: Lower and Higher Heating Values of Selected Fuels
E41: Fuels | F41: Lower Heating Value (LHV) [1] | I41: Higher Heating Value (HHV) [1] | L41: Density | N41: Fuel Cost | O41: Comments | P41: Base case Flue Gas Fctr (reclc)
D42: 1 | E42: =1+D42 -> 2 | F42: =1+E42 -> 3 | G42: =1+F42 -> 4 | H42: 5 | I42: 6 | J42: 7 | K42: 8 | L42: 9 | M42: 10 | N42: =1+M42 -> 11 | O42: =1+N42 -> 12
D43: 1 | E43: Gaseous Fuels @ 32 F and 1 atm | F43: Btu/ft3 [2] | G43: Btu/lb [3] | H43: MJ/kg [4] | I43: Btu/ft3 [2] | J43: Btu/lb [3] | K43: MJ/kg [4] | L43: gr/ft3 | M43: grams/cm3 | N43: $/MMBtu | P43: CFM/MMBtu/hr
D44: =1+D43 -> 2 | E44: Natural Gas | F44: 983 | G44: 20267.22591 | H44: 47.14126905 | I44: 1089 | J44: 22452.705 | K44: 52.22466124 | L44: 22 | N44: 4.21 | P44: 1003.890372
D45: =1+D44 -> 3 | E45: Liquid Fuels | F45: Btu/gal [2] | G45: Btu/lb [3] | H45: MJ/kg [4] | I45: Btu/gal [2] | J45: Btu/lb [3] | K45: MJ/kg [4] | L45: gr/gal
D46: 4 | E46: Jet Fuel A (Kerosene K1) | G46: 18500 | H46: 43.1 | J46: 19861 | K46: 46.2 | M46: =(0.78+0.81)/2 -> 0.795 | N46: 23.63 | P46: 4177.582866
D47: 5 | E47: No. 2 oil | F47: 128450 | G47: 18397.10625 | H47: 42.79139826 | I47: 137380 | J47: 19676.09542 | K47: 45.76630824 | L47: 3167 | M47: =+L47/(12*2.54)^3 -> 0.1118415495 | N47: 24.07 | O47: U.S. conventional diesel | P47: 1466.211073
D48: 6 | E48: Ultra low sulfur kerosene oil (ULSD) | F48: 129487.8476 | G48: 18320.14747 | H48: 42.61239326 | I48: 138490 | J48: 19593.78637 | K48: 45.5748586 | L48: 3206 | M48: =+L48/(12*2.54)^3 -> 0.1132188215 | N48: 20.94 | O48: Low-sulfur diesel | P48: 1931.890266
D49: 7 | E49: No. 6 Oil | F49: 140352.5222 | G49: 16967.61742 | H49: 39.46642828 | I49: 150110 | J49: 18147.22679 | K49: 42.2101823 | L49: 3752 | N49: 16.95 | O49: Residual oil | P49: 401.1636845
D50: 8 | E50: Solid Fuels | F50: Btu/ton [2] | G50: Btu/lb [5] | H50: MJ/kg [4] | I50: Btu/ton [2] | J50: Btu/lb [5] | K50: MJ/kg [4]
D51: 9 | E51: Coal | F51: 22460600 | G51: 11230.3 | H51: 26.12151245 | I51: 23445900 | J51: 11722.95 | K51: 27.26740909 | N51: 2.301895001 | O51: Bituminous coal (wet basis) [7] | P51: 499.9679048
D53: Source:
D54: GREET, The Greenhouse Gases, Regulated Emissions, and Energy Use In Transportation Model, GREET 1.8d.1, developed by Argonne National Laboratory, Argonne, IL, released August 26, 2010.
D55: http://greet.es.anl.gov/
D56: From:
E57: US DOE - Energy Efficiency & Renewable Energy | G57: http://cta.ornl.gov/bedb
E58: Biomass Energy Data Book | G58: http://cta.ornl.gov/bedb/appendix_a.shtml
D60: Notes:
D61: 1 | E61: The lower heating value (also known as net calorific value) of a fuel is defined as the amount of heat released by combusting a specified quantity (initially at 25°C) and returning the temperature of the combustion products to 150°C, which assumes the latent heat of vaporization of water in the reaction products is not recovered. The LHV are the useful calorific values in boiler combustion plants and are frequently used in Europe.
E63: The higher heating value (also known as gross calorific value or gross energy) of a fuel is defined as the amount of heat released by a specified quantity (initially at 25°C) once it is combusted and the products have returned to a temperature of 25°C, which takes into account the latent heat of vaporization of water in the combustion products. The HHV are derived only under laboratory conditions, and are frequently used in the US for solid fuels.
D65: =1+D61 -> 2 | E65: Btu = British thermal unit.
D66: =1+D65 -> 3 | E66: The heating values for gaseous fuels in units of Btu/lb are calculated based on the heating values in units of Btu/ft3 and the corresponding fuel density values. The heating values for liquid fuels in units of Btu/lb are calculated based on heating values in units of Btu/gal and the corresponding fuel density values.
D67: =1+D66 -> 4 | E67: The heating values in units of MJ/kg, are converted from the heating values in units of Btu/lb.
D68: =1+D67 -> 5 | E68: For solid fuels, the heating values in units of Btu/lb are converted from the heating values in units of Btu/ton.
D69: =1+D68 -> 6 | E69: Coal characteristics assumed by GREET for electric power production.
D70: =1+D69 -> 7 | E70: Coal characteristics assumed by GREET for hydrogen and Fischer-Tropsch diesel production.

Sheet Table of Contents
E5: AIR POLLUTION CONTROL COST EFFECTIVENESS ASSESSMENT FOR USE WITH RCSA SECTION 22a-174-22e(h)
N8: Revision: | O8: 01
N9: Rev. Date: | O9: 2016-08-31
E13: TABLE OF CONTENTS
E16: SECTION | O16: Page
E18: 1 | G18: INTRODUCTION | O18: 1
E19: 2 | G19: DATA ENTRY | O19: 2
E20: 3 | G20: REPORT | O20: 3
E21: 4 | G21: SELECTIVE CATALYTIC REDUCTION, SCR | O21: 4
E22: 5 | G22: SELECTIVE NON-CATALYTIC REDUCTION, SNCR | O22: 5
E23: 6 | G23: HIGH PRESSURE WATER INJECTION, HPWI | O23: 6
E26: INSTRUCTIONS
E27: To use this calculator, fill in the user inputs on the "data entry" tab. If an entry is not applicable to the emission unit, leave the entry field blank. The "report" page containing data entry specifications and the assessment results, is filled automatically. To review the calculations sequence refer to the tab specific for each individual control technology selected. To understand the equations, default values and assumptions used in calculating the resulting cost value, refer to the Explanation file, checking tabs specific to each individual control technology.

Sheet Introduction
J7: AIR POLLUTION CONTROL COST EFFECTIVENESS ASSESSMENT FOR USE WITH RCSA SECTION 22a-174-22e(h)
R10: Revision: | S10: 02
R11: Rev. date: | S11: 2016-08-31
F16: This template provides a method acceptable to the Commissioner for calculating the cost effectiveness of certain NOx control equipment to support a request for a case-by-case RACT determination pursuant to RCSA section 22a-174-22e(h). NOx controls addressed in this template include selective catalytic reduction (SCR), selective non-catalytic reduction (SNCR) and high-pressure water injection (HPWI). The cost per ton of NOx reduced value obtained from this calculator is presumptively acceptable by the commissioner. An owner may use an alternative method to estimate the cost ($/ton of NOx removed) of the post-combustion NOx controls addressed in this template, if the owner justifies such an alternative approach to the commissioner. For control scenarios not addressed in this template, an owner or operator may use any generally accepted method recognized by the U.S. Environmental Protection Agency (EPA) or by an industrial association and must document the method used to the Commissioner's satisfaction.
F25: References
F27: The method used in this template is based on the following documents prepared by EPA:
F28: 1 | G28: EPA Air Pollution Control Cost Manual - Seventh Edition, Section 4 - NOx Controls: Chapter 1 - Selective Noncatalytic Reduction, May 2016.
F29: =1+F28 -> 2 | G29: EPA Air Pollution Control Cost Manual - Seventh Edition, Section 4 - NOx Controls: Chapter 2 - Selective Catalytic Reduction, May 2016.
F30: =1+F29 -> 3 | G30: EPA’s Power Sector Modeling - Integrated Planning Model (IPM) Platform v.5.13, Chapter 8: Financial Assumptions.
F31: =1+F30 -> 4 | G31: EPA Air Pollution Control Cost Manual - Sixth Edition (EPA 452/B-02-001), January 2002.
F32: =1+F31 -> 5 | G32: Alternative Control Techniques Document - NOx Emissions from Stationary Gas Turbines - EPA ACT Document No.: EPA-453/R-93-007.
F34: General Assumptions
F36: General assumptions used in this template include the following:
F37: ● | G37: The default operating time for each emission source, NOx control, and facility is 8,760 hours per year (365 days per year). Deviation from this assumption is acceptable only for an emission source subject to an enforceable limitation on annual operating hours.
F39: ● | G39: The control design configuration assumed for each control is the most commonly used design configuration for which data was available.
F40: ● | G40: All results are adjusted by the Consumer Price Index (CPI) for 2012 and corrected to future years based on a projected CPI assuming a rate of inflation. Consequently the cost effectiveness may be scaled to 2017$ for the RCSA 22a-174-22e(h), Phase 1 determination and to 2020$ for the Phase 2 determination.
F44: Selective Catalytic Reduction, SCR Specifications
F46: ● | G46: The template is based on the 2016 Cost Manual, Ref. 2.
F47: ● | G47: Both the 2016 (Ref. 2) and 2002 (Ref. 4) Cost Manuals address utility/industrial boilers of a similar size firing coal or fuel oil. The results achieved using the method of the 2016 Cost Manual with the 2002 Cost Manual were in a similar price range for similarly sized utility and industrial boilers firing coal or fuel oil.
F50: ● | G50: The calculation was projected to address the use of SCR for simple cycle turbines. It was assumed that SCR used as a turbine control will have a total capital investment within the same range as utility boilers, where an acceptable range was ±30%. The extended 2002 calculation resulted in a higher overall cost than the 2016 calculation method in a ratio of 1:1.1 for natural gas and 1:1.5 for fuel oil.
F53: ● | G53: The method assumes a high dust design (configuration of the majority of SCR's, 88% reported in 1997, per Ref. 2 and the use of aqueous ammonia as the reductant. The cost values resulting from other designs are assumed to be in a comparative price range.
F55: ● | G55: The method also assumes the use of aqueous ammonia as the reductant. No other reductant selection for SCR is available.
F56: ● | G56: The catalyst is assumed to be a configuration with a ratio of 2:1 for full and empty layers (per Ref. 4), as this configuration results in a lower maintenance cost than other configurations.
F58: ● | G58: Complete replacement of the catalyst every 24,000 hrs of operation is assumed in the resulting cost estimate.
F60: Selective Non Catalytic Reduction, SNCR Specifications
F62: ● | G62: The template is based on the 2016 Cost Manual draft, Ref. 1 mentioned above.
F63: ● | G63: Urea is assumed to be used as the reductant, per the 2016 Cost Manual, Ref. 1. No other reductant selection is available within the template.
F64: ● | G64: The 2016 manual, Ref. 1, addresses the use of SNCR to control NOx from utility/industrial boilers firing coal or fuel oil. For turbines, calculations comparing the results of the 2016 (Ref. 1) and 2002 (Ref. 4) Cost Manual methods resulted in a similar price (within 20%), when adjusted to the same year. This variation is acceptable ( ±30%), according to EPA's methods.
F68: High Pressure Water Injection, HPWI Specifications
F70: ● | G70: EPA provided no 2016 cost manual draft for HPWI, so the total capital investment (TCI) estimation method used is developed from the 1996 Alternative Control Techniques (ACT) Document - NOx Emission from Stationary Gas Turbines, which used 1990 pricing.
F72: ● | G72: The TCI calculated for several specific emissions sources, using the 1996 ACT approach, demonstrated a linear relationship with the nominal output of the emission source (MW). The 2012 investment cost, was calculated using this relationship, and adjusted to 2012$ with the cost of inflation.
F74: ● | G74: The cost of utilities (electricity and water consumption) are the 2012$ cost specified in EPA's recent updates of the cost manuals (Ref. 1 and Ref. 2).
F75: ● | G75: Water treatment (materials and labor) and water disposal are the 1990$ costs specified in Ref. 5, only. Since the document has not been updated, the template uses the 1990$ specific costs adjusted to 2012$ by the U.S Consumer Price Index (CPI).
F78: Instructions
F80: To use this calculator, fill in the user inputs on the "data entry" tab. If an entry is not applicable to the emission unit, leave the entry field blank. The "report" page containing data entry specifications and the assessment results, is filled automatically. To review the calculations sequence refer to the tab specific for each individual control technology selected. To understand the equations, default values and assumptions used in calculating the resulting cost value, refer to the Explanation file, checking tabs specific to each individual control technology.
F86: Questions concerning this template may be addressed to Daniel Vesa, P.E., 860-424-3282,
F87: Daniel.Vesa@ct.gov.

Sheet Data Entry
Z5: Revision: | AA5: 02
Z6: Rev. Date: | AA6: 2016-08-31
L9: AIR POLLUTION CONTROLS COST EFFECTIVENESS ASSESSMENT FOR USE WITH RCSA SECTION 22a-174-22e(h)
K11: DATA ENTRY
D14: Line | F14: Item Description | M14: Symbol | N14: Units | P14: Input | T14: Comments
E18: I. | F18: Data Required
P19: Note: If an entry is not applicable to the emission unit, leave the entry field blank. All fields marked with an asterisk are required.
G21: Emission Unit ID
D22: 1 | H22: Owner/Operator | S22: * | T22: =IF(AND(P22="",OR(P$23>0,P$24>0,P$25>0, P$26>0,P$27>0,P$28>0,P$29>0,P$31>0,P$32>0,P$34>0,P$38>0,P$41>0,P$42>0,P$43>0,P$46>0,P$49>0,P$52>0,P$56>0,P$74>0,P$75>0,P$78>0,P$80>0)),"Error: Company name is required","Enter the full legal company / firm name") -> Enter the full legal company / firm name
D23: =1+D22 -> 2 | H23: Owner/Operator Initials
D24: 3 | H24: Facility Name | S24: * | T24: =IF(AND(P24="",OR(P$25>0, P$26>0,P$27>0,P$28>0,P$29>0,P$31>0,P$32>0,P$34>0,P$38>0,P$41>0,P$42>0,P$43>0,P$46>0,P$49>0,P$52>0,P$56>0,P$74>0,P$75>0,P$78>0,P$80>0,)),"Error: Facility name is required","Enter facility name") -> Enter facility name
D25: 4 | H25: Town
D26: 5 | H26: DEEP Permit/Registration No.
D27: 6 | H27: Town Code | T27: Per DEEP emission unit permit or registration.
D28: 7 | H28: Premises No. | T28: Per DEEP emission unit permit or registration.
D29: 8 | H29: Facility Altitude | M29: h | N29: ft | Q29: * | T29: =IF(AND(P29="",OR(P$31>0,P$32>0,P$34>0,P$38>0,P$41>0,P$42>0,P$43>0,P$46>0,P$49>0,P$52>0,P$56>0,P$74>0,P$75>0,P$78>0,P$80>0)),"Error: Facility altitude is required. If not known, enter ''0'' - sea level.","Enter elevation with respect to sea level. If elevation is not known and is estimated to be less than 500 ft, assume sea level ''0'' ft.") -> Enter elevation with respect to sea level. If elevation is not known and is estimated to be less than 500 ft, assume sea level ''0'' ft.
D31: =1+D29 -> 9 | H31: Unit Tag | Q31: * | T31: =IF(AND(P31="",OR(P$32>0,P$34>0,P$38>0,P$41>0,P$42>0,P$43>0,P$46>0,P$49>0,P$52>0,P$56>0,P$74>0,P$75>0,P$78>0,P$80>0)),"Error: Emission unit tag is required.","Enter unit DEEP permit or registration tag, if any. If none, assign an ID tag.") -> Enter unit DEEP permit or registration tag, if any. If none, assign an ID tag.
D32: =1+D31 -> 10 | H32: Unit Type | S32: * | T32: =IF(AND(P32="",OR(P$34>0,P$38>0,P$41>0,P$42>0,P$43>0,P$46>0,P$49>0,P$52>0,P$56>0,P$74>0,P$75>0,P$78>0,P$80>0)),"Error: Emission unit type is required. Select from the drop down list.","Select from the drop down list : Combined Cycle Turbine, Combustion Turbine, Engine or Boiler.") -> Select from the drop down list : Combined Cycle Turbine, Combustion Turbine, Engine or Boiler.
D34: =1+D32 -> 11 | H34: No. of identical Units w/ same controls | T34: Enter number of identical units at the same location with the same type of air pollution control. Note: Control Cost Effectiveness assessment performed for a single emission unit.
D38: =1+D34 -> 12 | H38: =+IF(P32="Boiler","Type of Combustion","") ->  | T38: =+IF(P32="Boiler",IF(P38>0,"Indicate whether the combustion type is a Fluidized Bed (FB) or not (non-FB).","Select whether the combustion type is a Fluidized Bed (FB) or not (non-FB)."),IF(P38>0,"Delete entry, since refers to boilers only","Line 12 should be left blank, unless the emission unit is a boiler.")) -> Line 12 should be left blank, unless the emission unit is a boiler.
G40: Air Pollution Control(s) Selected
D41: =1+D38 -> 13 | H41: Selective Catalytic Reduction - SCR | Q41: * | T41: =+IF(AND(AND(P41="",P42="",P43=""),OR(P$46>0,P$49>0,P$52>0,P$56>0,P$74>0,P$75>0,P$78>0,P$80>0)),"Error: Select at least one control.","Select the control(s) to be assessed by choosing ''Yes'' or ''No'' from the corresponding adjacent drop down list.") -> Select the control(s) to be assessed by choosing ''Yes'' or ''No'' from the corresponding adjacent drop down list.
D42: =1+D41 -> 14 | H42: Selective Noncatalytic Reduction - SNCR | Q42: *
D43: =1+D42 -> 15 | H43: High Pressure Water Injection - HPWI | Q43: *
G45: Performance Data
D46: =1+D43 -> 16 | H46: Maximum Heat Rate Input | M46: QB | N46: MMBtu/hr | Q46: * | T46: =+IF(OR(P32="Combustion Turbine",P32="Boiler"),"It may be left blank, if not known",IF(P46>0,"Enter value if the emission unit is a combined cycle turbine or a boiler. If not, it may be left blank. Note: Use as entry data ''Nominal Heat Input Capacity'', if available. ",IF(OR(P49="",P52=""),"Enter value if the emission unit is a combined cycle turbine or a boiler. If not, it may be left blank. Note: Use as entry data ''Nominal Heat Input Capacity'', if available.","Enter value "&IF(AND(P49>0,P52>0),"(of "&ROUND(P49*P52,0)&" MMBtu/hr).")))) -> Enter value if the emission unit is a combined cycle turbine or a boiler. If not, it may be left blank. Note: Use as entry data ''Nominal Heat Input Capacity'', if available.
D49: =1+D46 -> 17 | H49: Power Output (MW Rating) at full load capacity. | M49: BMW | N49: MW | Q49: * | T49: =+IF(P46="",IF(P32="Combustion Turbine",IF(P49>0,"","Enter unit Nominal Plate MW"),""),IFERROR(IF(ROUND(P49,1)=ROUND(P46/P52,1),"","It may be left blank or enter MW as ''Max. Heat Rate Input / NPHR = "&ROUND(P46/P52,1)&"MW''"),"Enter NPHR below")) -> 
D52: =1+D49 -> 18 | H52: =+IF(P32="Boiler","Net Plant Heat Rate","Nominal Plate Heat Rate") -> Nominal Plate Heat Rate | M52: NPHR | N52: MMBtu/MWh | Q52: * | T52: =+IF(P52=IF(AND(P46>0,P49>0),ROUND(P46/P49,2),P52),"Provided by the unit's manufacturer. If not known it can be assessed from EPA's AMPD data.","Error: Check all Performance Data Entries or Select a NPHR value equal to ="&ROUND(P46/P49,2)&" MMBtu/MWh") -> Provided by the unit's manufacturer. If not known it can be assessed from EPA's AMPD data.
T54: "Error: Coal is fired in boilers only, Check the unit type and the fuel."
G55: Fuel
D56: =1+D52 -> 19 | H56: Fuel (Primary) | S56: * | T56: =IF(AND(P56="",OR(P$74>0,P$75>0,P$78>0,P$80>0)),"Error: Fuel is required. Select from the drop down list.",IF(AND(P56="No. 6 oil",OR(P32="Combined Cycle",P32="Combustion Turbine")),"Error: No. 6 oil is not fired in turbines.", IF(AND(P56="Coal",OR(P32="Combined Cycle",P32="Combustion Turbine",P32="Engine")),"Error: Coal is fired in boilers only, Check the unit type and the fuel.","Select from the drop down list"))) -> Select from the drop down list
P57: =+IF(P56="Coal","Special Note (for emission units burning coal, only):","") -> 
P58: =+IF(P56="Coal","Connecticut has only one emission unit that burns coal and that unit burns a mix of bituminous and sub-bituminous coal."&" The specifications of the calculation for coal is designed to address that unit's coal inputs. For other coal types, this calculator may require adjustment.","") -> 
D62: =1+D56 -> 20 | H62: Fuel Sulfur Content | N62: % by weight | P62: 0 | Q62: * | T62: =IF(AND(P62="",OR(P$74>0,P$75>0,P$78>0,P$80>0)),"Error: A value of sulfur content is required. Enter ''0'' if sulfur content is not known.","Enter ''0'' if sulfur content is less than 1%.") -> Enter ''0'' if sulfur content is less than 1%.
D64: =1+D62 -> 21 | H64: SO₂ Content of Fuel | N64: lb/MMBtu | P64: 0 | Q64: * | T64: =IF(AND(P64="",OR(P$74>0,P$75>0,P$78>0,P$80>0)),"Error: A value of SO₂ content is required. Enter ''0'' if SO₂ content is not known.","Enter ''0'' for coals with SO₂ ≤ 3lb/MMBtu and also ''0'' if fuel is other than coal.") -> Enter ''0'' for coals with SO₂ ≤ 3lb/MMBtu and also ''0'' if fuel is other than coal.
D66: =1+D64 -> 22 | H66: Percent Fuel Ash Weight | M66: % FAW | N66: % by weight | P66: 0.075 | Q66: * | R66: =+IF(P66=7.5/100,"default value",IF(P66>0,"actual value","")) -> default value | T66: =IF(AND(P66="",OR(P$74>0,P$75>0,P$78>0,P$80>0)),"Error: A value of % Ash Fuel Weight is required. Enter 7.5% for coal or ''0'' for all other fuels.","Enter actual value or if not known enter ''7.5%'' for coal, or ''0'' for all other fuels''.") -> Enter actual value or if not known enter ''7.5%'' for coal, or ''0'' for all other fuels''.
G69: Exhaust Flue Flow | P69: Note:
P70: Exhaust flow temperature and flow rate at the max. capacity are required, only if SCR is selected on Line 13. Data entry fields at Lines 23, 24 and 25 may be left blank for SNCR and HPWI.
D73: =1+D66 -> 23 | H73: Most Recent Stack Test Date
D74: =1+D73 -> 24 | H74: Stack Temperature | M74: Tout | N74: ºF | Q74: =+IF(P41="Yes","*","") ->  | T74: =+IF(P41="Yes",IF(AND(P74="",OR(P$75>0,P$78>0,P$80>0)),"Error: The exhaust gas temperature associated with the exhaust flow is required.",""),"") -> 
D75: =1+D74 -> 25 | H75: Exhaust Flue Flow at Max. Capacity | N75: ACFM | Q75: =+IF(P41="Yes","*","") ->  | T75: =+IF(P41="Yes",IF(AND(P75="",OR(P$78>0,P$80>0)),"Error: The exhaust gas flow rate is required. If not available, use DEEP Emissions Inventory (EMIT) Data.","If not available, use DEEP Emissions Inventory (EMIT) Data."),"If not available, use DEEP Emissions Inventory (EMIT) Data for SCR assessment.") -> If not available, use DEEP Emissions Inventory (EMIT) Data for SCR assessment.
G77: NOx Removal Specifications
D78: =1+D75 -> 26 | H78: Uncontrolled NOx Emission Level | M78: NOxin | N78: lb/MMBtu | Q78: * | T78: =IF(AND(P78="",P$80>0),"Error: NOxin is rate is required. If not available, use EPA's AMPD data (max. value of the last five years)","From the stack test or from EPA's AMPD data (max. value of the last five years).") -> From the stack test or from EPA's AMPD data (max. value of the last five years).
D80: =1+D78 -> 27 | H80: Required Annual Average Controlled NOx Emission Level | M80: NOxout | N80: lb/MMBtu | Q80: * | T80: =IF(AND(P80="",P$78>0),"NOx(out) rate is required. Enter NOx limit as required by RCSA 22a-174-22e.","Enter NOx limit as required by RCSA 22a-174-22e.") -> Enter NOx limit as required by RCSA 22a-174-22e.
G83: Cost Adjustment
D84: =1+D80 -> 28 | H84: Year Control is Effective (or Current Year) | N84: $year | P84: 2016 | Q84: * | T84: =IF(OR(AND(P84="",OR(P$78>0,P$80>0)),AND(P85="",OR(P$78>0,P$80>0))),"Error: An entry is required. If CFI data is not availabe, enter the last year posted on the U.S. Dept. of Labor website, Ref.6, below.","Year posted may be adjusted to a future year. Corresponding CPI may be projected, if not available on the U.S. Department of Labor website, see Ref. 6, below.") -> Year posted may be adjusted to a future year. Corresponding CPI may be projected, if not available on the U.S. Department of Labor website, see Ref. 6, below.
D85: =1+D84 -> 29 | H85: Consumer Price Index (CPI Multiplier) | M85: =+"CPI"&"("&P84&"$)" -> CPI(2016$) | P85: 1.04 | Q85: *
G87: Retrofit Factors
D88: =1+D85 -> 30 | H88: Selective Catalytic Reduction System | M88: RFSCR | P88: 1 | Q88: * | T88: =IF(AND(P88="",P$41="Yes"),"Error: An entry is required for RF(SCR). Enter ''1'' as default or a value between 0.8 and 1.5, based on the level of difficulty.",IF(AND(P89="",P$42="Yes"),"Error: An entry is required for RF(SNCR). Enter ''1'' as default or a value between 0.8 and 1.5, based on the level of difficulty.",IF(AND(P90="",P$43="Yes"),"Error: An entry is required for RF(HPWI). Enter ''1'' as default or a value between 0.8 and 1.5, based on the level of difficulty.","Enter, for each of the selected controls, a retrofit factor between 0.8 and 1.5, based on the level of difficulty,"&" per Ref. 1, §1.4.1-Total Capital Investment, p1-44 (p44-pdf) and Ref. 2, §2.4-Cost Analysis, p2-63 (p64-pdf). Enter 1 (default value) for projects of average retrofit difficulty. Enter a value less than 1 for new construction."&" Note: You must document any retrofit factor greater than ''1'. "))) -> Enter, for each of the selected controls, a retrofit factor between 0.8 and 1.5, based on the level of difficulty, per Ref. 1, §1.4.1-Total Capital Investment, p1-44 (p44-pdf) and Ref. 2, §2.4-Cost Analysis, p2-63 (p64-pdf). Enter 1 (default value) for projects of average retrofit difficulty. Enter a value less than 1 for new construction. Note: You must document any retrofit factor greater than ''1'.
D89: =1+D88 -> 31 | H89: Selective Noncatalytic Reduction System | M89: RFSNCR | P89: 1 | Q89: *
D90: =1+D89 -> 32 | H90: High Pressure Water Injection System | M90: RFHPWI | P90: 1 | Q90: *
E95: II. | F95: General Assumptions
R96: References: | S96: 1 | T96: EPA Air Pollution Control Cost Manual - Seventh Edition, Section 4 - NOx Controls: Chapter 1 - Selective Noncatalytic Reduction, May 2016.
K97: EPA Air Pollution Control Cost Manual - Seventh Edition, Section 4 - NOx Controls: Chapter 1 - Selective Noncatalytic Reduction, May 2016.
S98: =1+S96 -> 2 | T98: EPA Air Pollution Control Cost Manual - Seventh Edition, Section 4 - NOx Controls: Chapter 2 - Selective Catalytic Reduction, May 2016.
S100: =1+S98 -> 3 | T100: EPA’s Power Sector Modeling - Integrated Planning Model (IPM) Platform v.5.13, Chapter 8: Financial Assumptions.
S102: =1+S100 -> 4 | T102: EPA Air Pollution Control Cost Manual - Sixth Edition (EPA 452/B-02-001), January 2002.
S104: =1+S102 -> 5 | T104: Alternative Control Techniques Document - NOx Emissions from Stationary Gas Turbines - EPA ACT Document No.: EPA-453/R-93-007.
S106: =1+S104 -> 6 | T106: U.S Department of Labor - Bureau of Labor Statistics: CPI Inflation Calculator.
P107: Column 1. | R107: Column 2.
G108: Operation Data | P108: Default Operation | R108: Limited Operation
D111: =1+D90 -> 33 | H111: Emission Unit Annual Hrs of Operation | M111: top, ems unit | N111: hrs | P111: 8760 | T111: Default operation time for RACT determination is 8,760 hrs. If the emission unit is subject to enforceable limit on hours of operation, enter the enforceable limit.
D114: =1+D111 -> 34 | H114: Air Pollution Control Annual Hrs of Operation | M114: t op, control | N114: hrs | P114: =+P111 -> 8760 | R114: =+IF(R111="","",R111) ->  | T114: The air pollution control is assumed to operate at all times the emission unit is operating. Therefore, the control and emission unit hrs of operation are equal.
D117: =1+D114 -> 35 | H117: Emission Unit Total Operating Time | M117: tems unit | N117: days | P117: =+P111/24 -> 365 | R117: =+IF(R111="","",R111/24) ->  | T117: Emission unit "Default Operation" and "Limited Operation" time, in days.
D119: =1+D117 -> 36 | H119: Emission Control Total Operating Time | M119: tcontrol | N119: days | P119: =+P114/24 -> 365 | R119: =+IF(R111="","",R114/24) ->  | T119: It is assumed that the air pollution control is on when the emission unit is running. Therefore, the control and emission unit hrs of operation are equal.
E122: III. | F122: Economic Factors and Specific Costs | P122: Note:
P123: Economic Factors and all Specific Cost listed below apply for both Default Operation and Limited Operation cost effectiveness calculations.
G125: Economic Factors
D126: =1+D119 -> 37 | H126: Cost Year base | N126: $year | P126: 2012 | T126: Per Ref. 1, § 1.4 Cost Analysis, page 1-43 (p43-pdf) & § 1.5-Ex. Problem, page 1-58 (p58-pdf) and Ref. 2, § 2.4 Cost Analysis, page 2-62 (p63-pdf) & § 2.5 - Ex. Problem, page 2-80 (p81-pdf).
D130: =1+D126 -> 38 | H130: Annual Interest Rate | M130: i | N130: % | P130: 0.07 | T130: Per Ref. 1, § 1.5-Ex. Problem, p1-58 (p58-pdf) and Ref. 2, § 2.5-Ex. Problem, page 2-80 (p81-pdf).
D133: =1+D130 -> 39 | H133: Equipment Life | M133: n | N133: years | P133: =+IFERROR(VLOOKUP(MATCH(IF(RIGHT(P32,6)="boiler",RIGHT(P32,6),P32),bk_id,0),bk_life,tbl!$F$28,FALSE),"") ->  | T133: Per Ref. 3, Chapter 8, Table 8-4, page 8-14 (p9-pdf):
T134: Power Sector Modeling Platform v.5.13 Documentation - Chapter 8: Financial Assumptions.
D137: =1+D133 -> 40 | H137: Capital Recovery Factor | M137: CRF | P137: =+IFERROR((P130*(1+P130)^P133)/((1+P130)^P133-1),"") ->  | T137: Calculated per Ref. 1, § 1.4.2 Total Annual Cost, eq. (1.55), p1-57 (p57-pdf) and Ref. 2, § 2.4.2 Total Annual Cost, Capital Recovery, eq. (2.71), p2-79 (p80-pdf).
T139: Enter actual value or EPA's value of 0.067 $/kWh, per Ref.1, §1.5-Ex. Problem, page 1-58 (p58,pdf).
G140: Utilities Specific Costs | P140: Note:
P141: User has the option to enter the local actual utilities values, instead of the default values.
D143: =1+D137 -> 41 | H143: Electrical Power Cost | M143: Costelect. | N143: $/kWh | P143: 0.067 | Q143: * | R143: =+IF(P143=6.7/100,"default value",IF(P143>0,"actual value","")) -> default value | T143: =IF(AND(P143="",OR(P$22>0,P$24>0,P$29>0,P$31>0,P$32>0,P$41>0,P$42>0,P$43>0,P$46>0,P$49>0,P$52>0,P$56>0,P$62>0,P$64>0,P$66>0,P$74>0,P$75>0,P$78>0,P$80>0,P$84>0,P$85>0,P$88>0,P$89>0,P$90>0,P$146>0)),"Error: An entry is required. Enter actual value or EPA's value of 0.067 $/kWh, per Ref.1, §1.5-Ex. Problem, page 1-58 (p58,pdf).", "Enter actual value or EPA's value of 0.067 $/kWh, per Ref.1, §1.5-Ex. Problem, page 1-58 (p58,pdf).") -> Enter actual value or EPA's value of 0.067 $/kWh, per Ref.1, §1.5-Ex. Problem, page 1-58 (p58,pdf).
D146: =1+D143 -> 42 | H146: Water Consumption Cost | M146: Costwater | N146: $/gal | P146: 0.0065 | Q146: * | R146: =+IF(P146=6.5/1000,"default value",IF(P146>0,"actual value","")) -> default value | T146: =IF(AND(P146="",OR(P$22>0,P$24>0,P$29>0,P$31>0,P$32>0,P$41>0,P$42>0,P$43>0,P$46>0,P$49>0,P$52>0,P$56>0,P$62>0,P$64>0,P$66>0,P$74>0,P$75>0,P$78>0,P$80>0,P$84>0,P$85>0,P$88>0,P$89>0,P$90>0,P$143>0)),"Error: An entry is required. Enter actual value or EPA's value of 0.0065 $/gal, per Ref. 1, § 1.5-Ex. Problem, page1-58 (p58-pdf).", "Enter actual value or EPA's value of 0.0065 $/gal, per Ref. 1, § 1.5-Ex. Problem, page1-58 (p58-pdf).") -> Enter actual value or EPA's value of 0.0065 $/gal, per Ref. 1, § 1.5-Ex. Problem, page1-58 (p58-pdf).
G148: Reagent Costs
D149: =1+D146 -> 43 | H149: 29% Ammonia Solution Cost | M149: Cost29% NH₃ | N149: $/lb | P149: 0.475 | T149: Per Ref. 2, § 2.5 - Ex. Problem, page 2-80 (p81-pdf).
D150: =1+D149 -> 44 | H150: 50% Urea Solution Cost | M150: Cost50% urea | N150: $/gal | P150: 1.62 | T150: Per Ref. 1, § 1.5 - Ex. Problem, page1-58 (p58-pdf).
G152: Labor Costs
D153: =1+D150 -> 45 | H153: Labor Rate | N153: $/hr | P153: 60 | T153: The suggested rate is the operator labor cost, including benefits, per Ref. 2, § 2.5 & 2.6 - Example Problem(s) 1 and 2, page 2-80 (p81-pdf) and page 2-88 (p89-pdf).
G156: Other Specifications
D157: =1+D153 -> 46 | H157: NOx properties are provided as | P157: NO₂ | T157: Per Ref. 1, §1.3.1 - Design parameters for Study-Level Estimates, Uncontrolled NOx and Stack NOx, p1-36 (p36-pdf), and Ref. 2, § 2.3.4 - Inlet NOx and Stack NOx, page 2-54 (p55-pdf).
D161: =1+D157 -> 47 | H161: NOx (as NO₂) Molecular Weight | M161: MNOx | N161: lb/mole | P161: =+VLOOKUP(MATCH(P157,c_id,0),cmp,tbl!$G$7,FALSE) -> 46.01 | T161: Provided in eq. (1.18), Ref. 1, §1.3.1-Design parameters for Study-Level Estimates, Estimating Reagent Consumption and Tank Size, p1-41 (p41-pdf), and in eq. (2.35), Ref. 2, §2.3.13 - Estimating Reagent Consumption and Tank Size, p2-61 (p62-pdf).

Sheet Report
X5: Revision: | Z5: 00
X6: Rev. Date: | Z6: 2016-08-31
K9: AIR POLLUTION CONTROLS COST EFFECTIVENESS ASSESSMENT FOR USE WITH RCSA SECTION 22a-174-22e(h)
O11: REPORT
F13: Item Description | P13: Input | T13: Comments
G16: Emission Unit ID
H17: Owner/Operator | P17: =+IF('Data Entry'!P22="","",'Data Entry'!P22) -> 
H18: Owner/Operator Initials | P18: =+IF('Data Entry'!P23="","",'Data Entry'!P23) -> 
H19: Facility Name | P19: =+IF('Data Entry'!P24="","",'Data Entry'!P24) -> 
H20: Town | P20: =+IF('Data Entry'!P25="","",'Data Entry'!P25) -> 
H21: DEEP Permit/Registration No. | P21: =+IF('Data Entry'!P26="","",'Data Entry'!P26) -> 
H22: Town Code | P22: =+IF('Data Entry'!P27="","",'Data Entry'!P27) ->  | T22: DEEP emission unit permit or registration.
H23: Premises No. | P23: =+IF('Data Entry'!P28="","",'Data Entry'!P28) ->  | T23: DEEP emission unit permit or registration.
H24: Unit Tag | P24: =+IF('Data Entry'!P31="","",'Data Entry'!P31) ->  | T24: Emission unit tag.
H25: Unit Type | P25: =+IF('Data Entry'!P32="","",'Data Entry'!P32) -> 
H26: No identical Units w/ same controls | P26: =+IF('Data Entry'!P34="","",'Data Entry'!P34) ->  | T26: Number of identical units at the same location with the same of air pollution control. Note: Control Cost Effectiveness assesment is performed for a single emission unit.
H30: Control Type | P30: =+IF(SCR!P30="",IF(SNCR!P30="",IF(HPWI!P30="","",HPWI!P30),SNCR!P30),SCR!P30) ->  | T30: =+IF(P30="SNCR",IF(P30="HPWI","",IF(HPWI!P30="","",HPWI!P30)),IF(SNCR!P30="",IF(P30="HPWI","",IF(HPWI!P30="","",HPWI!P30)),SNCR!P30)) ->  | X30: =+IF(OR(P30="HPWI",T30="HPWI"),"",IF(HPWI!P30="","",HPWI!P30)) -> 
P31: =+IF(P30="SCR",SCR!$P22,IF(P30="SNCR",SNCR!$P22,IF(P30="HPWI",HPWI!$P22,""))) ->  | R31: =+IF('Data Entry'!R111="","","Limited Operation") ->  | T31: =+IF(T30="SCR",SCR!$P22,IF(T30="SNCR",SNCR!$P22,IF(T30="HPWI",HPWI!$P22,""))) ->  | V31: =+IF(V34="","","Limited Operation") ->  | X31: =+IF(X30="SCR",SCR!$P22,IF(X30="SNCR",SNCR!$P22,IF(X30="HPWI",HPWI!$P22,""))) ->  | Z31: =+IF(Z34="","","Limited Operation") -> 
H34: Control Operating Time | M34: top, control | N34: hrs | P34: =+IF(P$30="SCR",SCR!$P36,IF(P$30="SNCR",SNCR!$P36,IF(P$30="HPWI",HPWI!$P36,""))) ->  | R34: =+IF(P$30="SCR",SCR!$R36,IF(P$30="SNCR",SNCR!$R36,IF(P$30="HPWI",HPWI!$R36,""))) ->  | T34: =+IF(T$30="SNCR",SNCR!$P36,IF(T$30="HPWI",HPWI!$P36,"")) ->  | V34: =IF(T$30="SNCR",SNCR!$R36,IF(T$30="HPWI",HPWI!$R36,"")) ->  | X34: =+IF(X$30="HPWI",HPWI!$P36,"") ->  | Z34: =IF(X$30="HPWI",HPWI!$R36,"") -> 
H36: Control Nominal Efficiency (default value) | M36: h NOxR | N36: % | P36: =+IF(P$30="SCR",SCR!$P43,IF(P$30="SNCR",SNCR!$P38,IF(P$30="HPWI",HPWI!$P38,""))) ->  | R36: =+IF(P$30="SCR",SCR!$R43,IF(P$30="SNCR",SNCR!$R38,IF(P$30="HPWI",HPWI!$R38,""))) ->  | T36: =IF(T$30="SNCR",SNCR!$P38,IF(T$30="HPWI",HPWI!$P38,"")) ->  | V36: =IF(T$30="SNCR",SNCR!$R38,IF(T$30="HPWI",HPWI!$R38,"")) ->  | X36: =+IF(X$30="HPWI",HPWI!$P38,"") ->  | Z36: =IF(X$30="HPWI",HPWI!$R38,"") -> 
H37: Control Lowest Attained NOxout Rate | M37: NOxout, min | N37: lb/MMBtu | P37: =+IF(P$30="SCR",SCR!$P47,IF(P$30="SNCR",SNCR!$P43,IF(P$30="HPWI",HPWI!$P41,""))) ->  | R37: =+IF(P$30="SCR",SCR!$R47,IF(P$30="SNCR",SNCR!$R43,IF(P$30="HPWI",HPWI!$R41,""))) ->  | T37: =IF(T$30="SNCR",SNCR!$P43,IF(T$30="HPWI",HPWI!$P41,"")) ->  | V37: =IF(T$30="SNCR",SNCR!$R43,IF(T$30="HPWI",HPWI!$R41,"")) ->  | X37: =IF(X$30="HPWI",HPWI!$P41,"") ->  | Z37: =IF(X$30="HPWI",HPWI!$R41,"") -> 
G39: NOx Removal Performance
H40: Uncontrolled NOx Emission Level | M40: NOxin | N40: lb/MMBtu | P40: =+IF(P$30="SCR",SCR!$P178,IF(P$30="SNCR",SNCR!$P154,IF(P$30="HPWI",HPWI!$P119,""))) ->  | R40: =+IF(P$30="SCR",SCR!$R178,IF(P$30="SNCR",SNCR!$R154,IF(P$30="HPWI",HPWI!$R119,""))) ->  | T40: =IF(T$30="SNCR",SNCR!$P154,IF(T$30="HPWI",HPWI!$P119,"")) ->  | V40: =IF(T$30="SNCR",SNCR!$R154,IF(T$30="HPWI",HPWI!$R119,"")) ->  | X40: =IF(X$30="HPWI",HPWI!$P119,"") ->  | Z40: =+IF(X$30="HPWI",HPWI!$R119,"") -> 
H41: Controlled NOx Outlet (required rate) | M41: NOxout | N41: lb/MMBtu | P41: =+IF(P$30="SCR",SCR!$P180,IF(P$30="SNCR",SNCR!$P156,IF(P$30="HPWI",HPWI!$P121,""))) ->  | R41: =+IF(P$30="SCR",SCR!$R180,IF(P$30="SNCR",SNCR!$R156,IF(P$30="HPWI",HPWI!$R121,""))) ->  | T41: =IF(T$30="SNCR",SNCR!$P156,IF(T$30="HPWI",HPWI!$P121,"")) ->  | V41: =IF(T$30="SNCR",SNCR!$R156,IF(T$30="HPWI",HPWI!$R121,"")) ->  | X41: =IF(X$30="HPWI",HPWI!$P121,"") ->  | Z41: =IF(X$30="HPWI",HPWI!$R121,"") -> 
H42: Controlled NOx Outlet (selected) | M42: NOxout,sel | N42: lb/MMBtu | P42: =+IF(P$30="SCR",SCR!$P183,IF(P$30="SNCR",SNCR!$P159,IF(P$30="HPWI",HPWI!$P124,""))) ->  | R42: =+IF(P$30="SCR",SCR!$R183,IF(P$30="SNCR",SNCR!$R159,IF(P$30="HPWI",HPWI!$R124,""))) ->  | T42: =+IF(T$30="SNCR",SNCR!$P159,IF(T$30="HPWI",HPWI!$P124,"")) ->  | V42: =IF(T$30="SNCR",SNCR!$R159,IF(T$30="HPWI",HPWI!$R124,"")) ->  | X42: =IF(X$30="HPWI",HPWI!$P124,"") ->  | Z42: =IF(X$30="HPWI",HPWI!$R124,"") -> 
H43: NOx Removal Efficiency (selected) | M43: h NOxR,sel | N43: % | P43: =+IF(P$30="SCR",SCR!$P186,IF(P$30="SNCR",SNCR!$P162,IF(P$30="HPWI",HPWI!$P127,""))) ->  | R43: =+IF(P$30="SCR",SCR!$R186,IF(P$30="SNCR",SNCR!$R162,IF(P$30="HPWI",HPWI!$R127,""))) ->  | T43: =IF(T$30="SNCR",SNCR!$P162,IF(T$30="HPWI",HPWI!$P127,"")) ->  | V43: =IF(T$30="SNCR",SNCR!$R162,IF(T$30="HPWI",HPWI!$R127,"")) ->  | X43: =IF(X$30="HPWI",HPWI!$P127,"") ->  | Z43: =IF(X$30="HPWI",HPWI!$R127,"") -> 
H44: NOx Removed Hourly Rate | M44: NOxR/hr | N44: lb/hr | P44: =+IF(P$30="SCR",SCR!$P192,IF(P$30="SNCR",SNCR!$P166,IF(P$30="HPWI",HPWI!$P132,""))) ->  | R44: =+IF(P$30="SCR",SCR!$R192,IF(P$30="SNCR",SNCR!$R166,IF(P$30="HPWI",HPWI!$R132,""))) ->  | T44: =IF(T$30="SNCR",SNCR!$P166,IF(T$30="HPWI",HPWI!$P132,"")) ->  | V44: =IF(T$30="SNCR",SNCR!$R166,IF(T$30="HPWI",HPWI!$R132,"")) ->  | X44: =IF(X$30="HPWI",HPWI!$P132,"") ->  | Z44: =IF(X$30="HPWI",HPWI!$R132,"") -> 
H45: NOx Removed / yr | M45: NOxR | N45: tons | P45: =+IF(P$30="SCR",SCR!$P195,IF(P$30="SNCR",SNCR!$P169,IF(P$30="HPWI",HPWI!$P135,""))) ->  | R45: =+IF(P$30="SCR",SCR!$R195,IF(P$30="SNCR",SNCR!$R169,IF(P$30="HPWI",HPWI!$R135,""))) ->  | T45: =IF(T$30="SNCR",SNCR!$P169,IF(T$30="HPWI",HPWI!$P135,"")) ->  | V45: =IF(T$30="SNCR",SNCR!$R169,IF(T$30="HPWI",HPWI!$R135,"")) ->  | X45: =IF(X$30="HPWI",HPWI!$P135,"") ->  | Z45: =IF(X$30="HPWI",HPWI!$R135,"") -> 
F47: Total Capital Investment (TCI) Estimate
G48: Total Capital Investment | M48: TCI2012$ | N48: 2012$ | P48: =+IF(P$30="SCR",SCR!$P280,IF(P$30="SNCR",SNCR!$P241,IF(P$30="HPWI",HPWI!$P183,""))) ->  | R48: =+IF(P$30="SCR",SCR!$R280,IF(P$30="SNCR",SNCR!$R241,IF(P$30="HPWI",HPWI!$R183,""))) ->  | T48: =IF(T$30="SNCR",SNCR!$P241,IF(T$30="HPWI",HPWI!$P183,"")) ->  | V48: =+IF(T$30="SNCR",SNCR!$R241,IF(T$30="HPWI",HPWI!$R183,"")) ->  | X48: =IF(X$30="HPWI",HPWI!$P183,"") ->  | Z48: =IF(X$30="HPWI",HPWI!$R183,"") -> 
F50: Annual Costs
G51: Direct Annual Cost | J51: =+IF(P30="SCR","Method 1","") ->  | M51: =+IF(P30="SCR","DAC1","DAC") -> DAC | N51: $/yr | P51: =+IF(P$30="SCR",SCR!$P313,IF(P$30="SNCR",SNCR!$P265,IF(P$30="HPWI",HPWI!$P212,""))) ->  | R51: =+IF(P$30="SCR",SCR!$R313,IF(P$30="SNCR",SNCR!$R265,IF(P$30="HPWI",HPWI!$R212,""))) ->  | T51: =IF(T$30="SNCR",SNCR!$P265,IF(T$30="HPWI",HPWI!$P212,"")) ->  | V51: =+IF(T$30="SNCR",SNCR!$R265,IF(T$30="HPWI",HPWI!$R212,"")) ->  | X51: =IF(X$30="HPWI",HPWI!$P212,"") ->  | Z51: =IF(X$30="HPWI",HPWI!$R212,"") -> 
J52: =+IF(P30="SCR","Method 2 (SCR only)","") ->  | M52: =+IF(P30="SCR","DAC2","") ->  | N52: $/yr | P52: =+IF(P$30="SCR",SCR!$P314,"") ->  | R52: =+IF(P$30="SCR",SCR!$R314,"") -> 
G54: Indirect Annual Cost | M54: IDAC | N54: $/yr | P54: =+IF(P$30="SCR",SCR!$P321,IF(P$30="SNCR",SNCR!$P272,IF(P$30="HPWI",HPWI!$P221,""))) ->  | R54: =+IF(P$30="SCR",SCR!$R321,IF(P$30="SNCR",SNCR!$R272,IF(P$30="HPWI",HPWI!$R221,""))) ->  | T54: =IF(T$30="SNCR",SNCR!$P272,IF(T$30="HPWI",HPWI!$P221,"")) ->  | V54: =IF(T$30="SNCR",SNCR!$R272,IF(T$30="HPWI",HPWI!$R221,"")) ->  | X54: =IF(X$30="HPWI",HPWI!$P221,"") ->  | Z54: =IF(X$30="HPWI",HPWI!$R221,"") -> 
G56: Total Annual Cost | J56: =+IF(P30="SCR","Method 1","") ->  | M56: =+IF(P30="SCR","TAC1","TAC") -> TAC | N56: $/yr | P56: =+IF(P$30="SCR",SCR!$P324,IF(P$30="SNCR",SNCR!$P275,IF(P$30="HPWI",HPWI!$P223,""))) ->  | R56: =+IF(P$30="SCR",SCR!$R324,IF(P$30="SNCR",SNCR!$R275,IF(P$30="HPWI",HPWI!$R223,""))) ->  | T56: =IF(T$30="SNCR",SNCR!$P275,IF(T$30="HPWI",HPWI!$P223,"")) ->  | V56: =IF(T$30="SNCR",SNCR!$R275,IF(T$30="HPWI",HPWI!$R223,"")) ->  | X56: =+IF(X$30="HPWI",HPWI!$P223,"") ->  | Z56: =IF(X$30="HPWI",HPWI!$R223,"") -> 
J57: =+IF(P30="SCR","Method 2 (SCR only)","") ->  | M57: =+IF(P30="SCR","TAC2","") ->  | N57: $/yr | P57: =+IF(P$30="SCR",SCR!$P326,"") ->  | R57: =+IF(P$30="SCR",SCR!$R326,"") -> 
F59: Control Cost Effectiveness (2012$)
G61: Base Year | P61: =+IF(P$30="SCR",SCR!$P332,IF(P$30="SNCR",SNCR!$P282,IF(P$30="HPWI",HPWI!$P229,""))) ->  | T61: =+IF(T$30="SNCR",SNCR!$P282,IF(T$30="HPWI",HPWI!$P229,"")) ->  | X61: =IF(X$30="HPWI",HPWI!$P229,"") -> 
H62: Cost Effectiveness | J62: =+IF(P30="SCR","Method 1","") ->  | M62: Costeffect,$2012 | N62: 2012$/ton NOxR | P62: =+IF(P$30="SCR",SCR!$P333,IF(P$30="SNCR",SNCR!$P283,IF(P$30="HPWI",HPWI!$P230,""))) ->  | R62: =+IF(P$30="SCR",SCR!$R333,IF(P$30="SNCR",SNCR!$R283,IF(P$30="HPWI",HPWI!$R230,""))) ->  | T62: =IF(T$30="SNCR",SNCR!$P283,IF(T$30="HPWI",HPWI!$P230,"")) ->  | V62: =IF(T$30="SNCR",SNCR!$R283,IF(T$30="HPWI",HPWI!$R230,"")) ->  | X62: =+IF(X$30="HPWI",HPWI!$P230,"") ->  | Z62: =IF(X$30="HPWI",HPWI!$R230,"") -> 
H63: =+IF(P30="SCR",H62,"") ->  | J63: =+IF(P30="SCR","Method 2 (SCR only)","") ->  | P63: =+IF(P$30="SCR",SCR!$P334,"") ->  | R63: =+IF(P$30="SCR",SCR!$R334,"") -> 
G65: Year Control is effective | P65: =+IF(P$30="SCR",SCR!$P336,IF(P$30="SNCR",SNCR!$P286,IF(P$30="HPWI",HPWI!$P233,""))) ->  | T65: =IF(T$30="SNCR",SNCR!$P286,IF(T$30="HPWI",HPWI!$P233,"")) ->  | X65: =+IF(X$30="HPWI",HPWI!$P233,"") -> 
H66: Cost Effectiveness | J66: =+IF(P30="SCR","Method 1","") ->  | M66: Costeffect,yr | N66: $/ton NOxR | P66: =+IF(P$30="SCR",SCR!$P337,IF(P$30="SNCR",SNCR!$P287,IF(P$30="HPWI",HPWI!$P234,""))) ->  | R66: =+IF(P$30="SCR",SCR!$R337,IF(P$30="SNCR",SNCR!$R287,IF(P$30="HPWI",HPWI!$R234,""))) ->  | T66: =IF(T$30="SNCR",SNCR!$P287,IF(T$30="HPWI",HPWI!$P234,"")) ->  | V66: =IF(T$30="SNCR",SNCR!$R287,IF(T$30="HPWI",HPWI!$R234,"")) ->  | X66: =IF(X$30="HPWI",HPWI!$P234,"") ->  | Z66: =+IF(X$30="HPWI",HPWI!$R234,"") -> 
H67: Cost Effectiveness | J67: =+IF(P30="SCR","Method 2 (SCR only)","") ->  | P67: =+IF(P$30="SCR",SCR!$P338,"") ->  | R67: =+IF(P$30="SCR",SCR!$R338,"") -> 

Sheet SCR
Z5: Revision: | AA5: 02
Z6: Rev. Date: | AA6: 2016-08-31
K9: AIR POLLUTION CONTROL COST EFFECTIVENESS ASSESSMENT FOR USE WITH RCSA SECTION 22a-174-22e(h)
R12: References: | S12: 1 | T12: EPA Air Pollution Control Cost Manual - Seventh Edition, Section 4 - NOx Controls: Chapter 2 - Selective Catalytic Reduction, May 2016.
K14: SELECTIVE CATALYTIC REDUCTION - SCR | S14: =1+S12 -> 2 | T14: EPA Air Pollution Control Cost Manual - Sixth Edition (EPA 452/B-02-001), January 2002.
S16: =1+S14 -> 3 | T16: Alternative Control Techniques Document - NOx Emissions from Stationary Gas Turbines - EPA ACT Document No.: EPA-453/R-93-007.
S18: =1+S16 -> 4 | T18: U.S Department of Labor - Bureau of Labor Statistics: CPI Inflation Calculator.
D20: Line | F20: Item Description | M20: Symbol | N20: Units | P20: Input | T20: Comments
P21: Column 1. | R21: Column 2.
P22: Default Operation | R22: Limited Operation
E25: SCR ASSUMPTIONS | T25: =+IF('Data Entry'!P41="Yes","","Note:") -> Note:
T26: =+IF('Data Entry'!P41="Yes","","Select SCR on Data Entry, Line 13, in order to see control cost effectiveness calculation.") -> Select SCR on Data Entry, Line 13, in order to see control cost effectiveness calculation.
E27: I. | F27: Air Pollution Control Assumptions
G29: Control Unit Specifications
D30: 1 | H30: Control Type | P30: =+IF('Data Entry'!P41="Yes",IF(OR('Data Entry'!P56="",'Data Entry'!P78="",'Data Entry'!P80=""),"",IF(OR('Data Entry'!P$22="",'Data Entry'!P$24="",'Data Entry'!P$29="",'Data Entry'!P$31="",'Data Entry'!P$32="",'Data Entry'!P$41="",AND('Data Entry'!P$46="",'Data Entry'!P$49=""),'Data Entry'!P$52="",'Data Entry'!P$56="",'Data Entry'!P$62="",'Data Entry'!P$64="",'Data Entry'!P$66="",'Data Entry'!P$74="",'Data Entry'!P$75="",'Data Entry'!P$78="",'Data Entry'!P$80="",'Data Entry'!P$84="",'Data Entry'!P$85="",'Data Entry'!P$88="",'Data Entry'!P$143="",'Data Entry'!P$146=""),"",IF(LEFT('Data Entry'!T56,5)="Error","","SCR"))),"") ->  | R30: =+IF(P30="","",IF(AND('Data Entry'!P41="Yes",'Data Entry'!R111>0),"SCR","")) ->  | T30: =IF(AND('Data Entry'!P41="Yes",OR('Data Entry'!P$22="",'Data Entry'!P$24="",'Data Entry'!P$29="",'Data Entry'!P$31="",'Data Entry'!P$32="",AND('Data Entry'!P$46="",'Data Entry'!P$49=""),'Data Entry'!P$52="",'Data Entry'!P$56="",'Data Entry'!P$62="",'Data Entry'!P$64="",'Data Entry'!P$66="",'Data Entry'!P$74="",'Data Entry'!P$75="",'Data Entry'!P$78="",'Data Entry'!P$80="",'Data Entry'!P$84="",'Data Entry'!P$85="",'Data Entry'!P$88="",'Data Entry'!P$143="",'Data Entry'!P$146="")),"Error: Check Data Entry page and ensure that SCR is selected on Line 13 and all other required fields are specified. ",IF(AND('Data Entry'!P41="Yes",'Data Entry'!R111>0),"SCR cost effectiveness calculation is displayed down the column, for both ''Default Operation'' and ''Limited Operation''.","SCR cost effectiveness calculation is displayed down the column, for ''Default Operation''. To show calculation on ''Limited Operation'' column, enter no. of hours on Data Entry page, Line 33, Column 2, otherwise the entire column is blank.")) -> SCR cost effectiveness calculation is displayed down the column, for ''Default Operation''. To show calculation on ''Limited Operation'' column, enter no. of hours on Data Entry page, Line 33, Column 2, otherwise the entire column is blank.
D34: =1+D30 -> 2 | H34: Number of SCRs per Combustion Unit | M34: NSCR | P34: =+IF(P$30="SCR",1,"") ->  | R34: =+IF(R$30="SCR",1,"") ->  | T34: Selected design criteria: one SCR system per emission unit.
D36: =1+D34 -> 3 | H36: SCR Operating Time | M36: top, control | N36: hrs | P36: =+IF(P$30="SCR",'Data Entry'!P114,"") ->  | R36: =+IF(R$30="SCR",'Data Entry'!R114,"") ->  | T36: Air Pollution Control Annual Hrs of Operation, as entered on Data Entry, Line 34.
D38: =1+D36 -> 4 | H38: SCR Configuration | P38: =+IF(P$30="SCR","High-Dust","") ->  | R38: =+IF(R$30="SCR","High-Dust","") ->  | T38: Configuration of the majority of SCR's (88%) reported in 1997, per Ref. 1, § 2.2.3 - SCR System Configurations, page 2-29 (p30-pdf).
D41: =1+D38 -> 5 | H41: SCR Temperature Inlet (Default) | M41: Tin | N41: ºF | P41: =+IF(P$30="SCR",700,"") ->  | R41: =+IF(R$30="SCR",700,"") ->  | T41: Selected default value of SCR Temperature Inlet.
D43: =1+D41 -> 6 | H43: SCR Removal Efficiency at selected Tin | M43: h NOxR | N43: % | P43: =+IF(P$30="SCR",90%,"") ->  | R43: =+IF(R$30="SCR",90%,"") ->  | T43: SCR Efficiency at 700ºF, per Ref. 1, Fig. 2.2 - NOx Removal vs. Temperature, page 2-17 (p18-pdf). Selected efficiency may be adjusted if the calculated NOxout value falls below the SCR attainable limit.
D47: =1+D43 -> 7 | H47: SCR Lowest Attained NOxout Rate | M47: NOxout, min | N47: lb/MMBtu | P47: =+IF(P$30="SCR",0.04,"") ->  | R47: =+IF(R$30="SCR",0.04,"") ->  | T47: Lowest attainable value suggested in EPA's Clean Air Markets Division (CAMD) database, per Ref. 1, § 2.1- Introduction, footnote #2, page 2-2 (p3-pdf).
G49: Catalyst Design Specifications
D50: =1+D47 -> 8 | H50: Min. Number of Layers | P50: =+IF(P$30="SCR",2,"") ->  | R50: =+IF(R$30="SCR",2,"") ->  | T50: Min. two layers required, per Ref. 1, § 2.3.12 - SCR Reactor Dimensions, page 2-60 (p61 pdf).
D53: =1+D50 -> 9 | H53: Catalyst Layers Ratio | M53: Full/Empty | P53: =+IF(P$30="SCR",2,"") ->  | R53: =+IF(R$30="SCR",2,"") ->  | T53: Two full, one empty layer ratio, per Ref. 2, §2.5 Ex. Problem, p2-50 (p.54-pdf).
H55: Flue Gas Superficial Velocity
D56: =1+D53 -> 10 | I56: Recommended | M56: vsuperficial | N56: ft/sec | P56: =+IF(P$30="SCR",16,"") ->  | R56: =+IF(R$30="SCR",16,"") ->  | T56: Typical flue gas face velocity, per Ref. 1, § 2.3.12-SCR Reactor Dimensions, page 2-59 (p60-pdf).
D58: =1+D56 -> 11 | I58: Selected | M58: vsuperficial, sel | N58: ft/sec | P58: =+P56 ->  | R58: =+IF(R56="","",P58) ->  | T58: =+IF(OR(AND(P$30="SCR",P58=""),AND(R$30="SCR",R58="")), "Error: Select a face velocity. Default value = 16 ft/sec", "Line 10 value. Selected value may be changed if the resulting catalyst height is out of range. Field allows a new entry value, if necessary.") -> Line 10 value. Selected value may be changed if the resulting catalyst height is out of range. Field allows a new entry value, if necessary.
D60: =1+D58 -> 12 | H60: Aspect Ratio Cross-sectional Area | M60: l / w | P60: =+IF(P$30="SCR",1,"") ->  | R60: =+IF(R$30="SCR",1,"") ->  | T60: Cross-sectional area assumed square, length (l) = width (w), hence l / w = 1. Industry standard aspect ratios are between 1.0 - 1.5, per Ref. 1, § 2.3.12 - SCR Reactor Dim's., p2-59 (p60 pdf).
D64: =1+D60 -> 13 | H64: Catalyst Layer's Height Range | M64: hlayer | N64: ft | P64: =+IF(P$30="SCR","2.5-5.0","") ->  | R64: =+IF(R$30="SCR","2.5-5.0","") ->  | T64: Standard industry range, per Ref. 1, § 2.3.12 - SCR Reactor Dim's, p2-60 (p61 pdf).
D66: =1+D64 -> 14 | H66: Nominal Height of Catalyst Layer | M66: h´layer | N66: ft | P66: =+IF(P$30="SCR",3.1,"") ->  | R66: =+IF(R$30="SCR",3.1,"") ->  | T66: Nom.height, per Ref. 1, § 2.3.12 -SCR Reactor Dim's, footnote #23, p2-60 (p61 pdf).
H68: Catalyst Additional Height Clearance
D69: =1+D66 -> 15 | I69: Catalyst Layer Clearance | M69: c1 | N69: ft | P69: =+IF(P$30="SCR",7,"") ->  | R69: =+IF(R$30="SCR",7,"") ->  | T69: Both c1 and c2 clearances are based on common industry practice, per Ref. 1, § 2.3.12 - SCR Reactor Dimensions, page 2-61 (p62 pdf).
D70: =1+D69 -> 16 | I70: SCR Module Clearance | M70: c2 | N70: ft | P70: =+IF(P$30="SCR",9,"") ->  | R70: =+IF(R$30="SCR",9,"") -> 
D72: =1+D70 -> 17 | H72: Pressure Drop for SCR Ductwork | M72: ΔPduct | N72: in w.g | P72: =+IF(P$30="SCR",3,"") ->  | R72: =+IF(R$30="SCR",3,"") ->  | T72: Typical pressure drop values, per Ref. 1, § 2.5 & 2.6 - Example Problem(s) 1 and 2, page 2-80 (p81 pdf) and respectively page 2-87 (p88-pdf).
D73: =1+D72 -> 18 | H73: Pressure Drop for each Catalyst Layer | M73: ΔPcatalyst | N73: in w.g | P73: =+IF(P$30="SCR",1,"") ->  | R73: =+IF(R$30="SCR",1,"") -> 
E75: II. | F75: Reagent Specifications
G77: Reagent Data
D78: =1+D73 -> 19 | H78: Reagent type | P78: =+IF(P$30="SCR","ammonia","") ->  | R78: =+IF(R$30="SCR","ammonia","") ->  | T78: Selected design criteria per Ref.1, §2.2.1-Reduction Chemistry, p2-12 (p13-pdf).
D79: =1+D78 -> 20 | H79: Reagent Molecular Weight | M79: Mreagent | N79: lb/mole | P79: =+IF(P$30="SCR",VLOOKUP(MATCH(P78,c_id,0),cmp,tbl!$G$7,FALSE),"") ->  | R79: =+IF(R$30="SCR",VLOOKUP(MATCH(R78,c_id,0),cmp,tbl!$G$7,FALSE),"") ->  | T79: Ammonia Molecular Weight, per Ref. 1, Table 2.2, page 2-13 (p14-pdf).
D80: =1+D79 -> 21 | H80: Acceptable Ammonia Slip | M80: Slip | N80: ppm | P80: =+IF(P$30="SCR",2,"") ->  | R80: =+IF(R$30="SCR",2,"") ->  | T80: Acceptable levels of 2-3 ppm, per Ref. 1, Ammonia Slip, page 2-21 (p22-pdf).
D81: =1+D80 -> 22 | H81: Stoichiometric Ratio Factor | M81: SRF | N81: moles reagent / moles NOx | P81: =+IF(P$30="SCR",1.05,"") ->  | R81: =+IF(R$30="SCR",1.05,"") ->  | T81: Defined by eq. (2.13) per Ref. 1, §2.3.7- Stoichiometric Ratio Factor, p2-55 (p56-pdf). Typically SCR systems employ 1.05 moles of ammonia to one mole of NOx.
G83: Storage
D84: =1+D81 -> 23 | H84: Stored Ammonia Solution Concentration | M84: Csol | N84: % by weight | P84: =+IF(P$30="SCR",29.4%,"") ->  | R84: =+IF(R$30="SCR",29.4%,"") ->  | T84: Typical SCR ammonia concentration, per Ref.1, §2.2.1 - Reduction Chemistry, page 2-12 (p13-pdf).
D86: =1+D84 -> 24 | H86: Ammonia 29% Solution Density | M86: ρsol | N86: lb/ft³ | P86: =+IF(P$30="SCR",56,"") ->  | R86: =+IF(R$30="SCR",56,"") ->  | T86: Per Ref. 1, § 2.3.12 - SCR Reactor Dim's, page 2-62 (p63 pdf).
D88: =1+D86 -> 25 | H88: No. Storage Days | M88: tstorage | N88: days | P88: =+IF(P$30="SCR",14,"") ->  | R88: =+IF(R$30="SCR",14,"") ->  | T88: Common onsite storage requirement, per Ref. 1, § 2.3.12 - SCR Reactor Dim's, page 2-62 (p63-pdf).
E90: III. | F90: Specific Economic Factors
G92: SCR Costs Factors
H93: Catalyst Cost
D94: =1+D88 -> 26 | I94: Catalyst Cost, dollars per ft³ | M94: CCreplace, IP | N94: $/ft³ | P94: =+IF(P$30="SCR",160,"") ->  | R94: =+IF(R$30="SCR",160,"") ->  | T94: Per Ref. 1, § 2.5 & 2.6 - Ex. Problem(s) 1 and 2, p2-80 (p81 pdf) & p2-88 (p89-pdf).
D95: =1+D94 -> 27 | I95: Catalyst Cost, dollars per m³ | M95: CCreplace, SI | N95: $/m³ | P95: =+IF(P$30="SCR",5500,"") ->  | R95: =+IF(R$30="SCR",5500,"") ->  | T95: $5,500 $/m³ is equivalent to 160$/ft³. Changing the units, results ~156$/ft³.
D96: =1+D95 -> 28 | H96: Operating Life of Catalyst | M96: CLife | N96: hrs | P96: =+IF(P$30="SCR",IF(P143="Coal",24000,32000),"") ->  | R96: =+IF(R$30="SCR",IF(P143="Coal",24000,32000),"") ->  | T96: Vendor data, per Ref. 1, §2.2.1 - Reduction Chemistry, page 2-14 (p15-pdf).
G98: Labor Costs
D99: =1+D96 -> 29 | H99: Number of hours of operator labor | M99: top, labor | N99: hrs/day | P99: =+IF(P$30="SCR",4,"") ->  | R99: =+IF(R$30="SCR",4,"") ->  | T99: Per Ref.1, § 2.5 & 2.6 - Ex. Problem(s) 1 and 2, p2-80 (p81 pdf) & p2-88 (p89-pdf).
D101: =1+D99 -> 30 | H101: Labor Rate | M101: LR | N101: $/hr | P101: =+IF(P$30="SCR",'Data Entry'!$P$153,"") ->  | R101: =+IF(R$30="SCR",'Data Entry'!$P$153,"") ->  | T101: EPA suggested "Labor Rate", listed on Data Entry page, Line 45.
G103: Capital Cost Elevation Factor
D104: =1+D101 -> 31 | H104: Elevation Factor | M104: ELEVF | P104: =+IF(P$30="SCR",IF('Data Entry'!P29="","",14.696/(2116*((59-0.00356*'Data Entry'!P29+459.7)/518.6)^5.256/144)),"") ->  | R104: =+IF(R$30="SCR",IF('Data Entry'!P29="","",14.696/(2116*((59-0.00356*'Data Entry'!P29+459.7)/518.6)^5.256/144)),"") ->  | T104: Calculated per eq's. (2.39a) & (2.39b), Ref. 1, §2.4.1 - Total Capital Investment, pages 2-64 & 2-65 (p65/p66-pdf).
E108: SCR SIZING
E110: I. | F110: Emission Unit Performance Data
G112: Emission Unit Data
D113: =1+D104 -> 32 | H113: Unit Type | P113: =+IF(P$30="SCR",IF('Data Entry'!P32="","",'Data Entry'!P32),"") ->  | T113: =+IF(P30="","",IF('Data Entry'!P32="","Error: Enter Emission Unit Type on Data Entry page, Line 10","Emission unit type selected on Data Entry page Line 10.")) -> 
D115: =1+D113 -> 33 | H115: Maximum Heat Rate Input | M115: QB | N115: MMBtu/hr | P115: =+IF(P$30="SCR",IF(OR(P113="Combined cycle",P113="Boiler"),'Data Entry'!P46,IFERROR('Data Entry'!P49*'Data Entry'!P52,"")),"") ->  | R115: =+IF(R$30="SCR",IF(OR(P113="Combined cycle",P113="Boiler"),'Data Entry'!P46,IFERROR('Data Entry'!P49*'Data Entry'!P52,"")),"") ->  | T115: =+IF(T116="","Space intentionally left blank","") -> Space intentionally left blank
T116: =+IF(P30="","",IF(P115='Data Entry'!P46,"","Error: Check, Max. Heat Rate Input should be "&P115&" MMBtu/hr, instead of "&IF('Data Entry'!P46="","''Blank''",'Data Entry'!P46)&" MMBtu/hr, as selected on ''Data Entry'' page, if NPHR is listed as "&'Data Entry'!P52&" MMBtu/MWh"&" and Nominal Power Output is "&'Data Entry'!P49&" MW.")) -> 
D117: =1+D115 -> 34 | H117: Power Output (MW Rating) at full load capacity. | M117: BMW | N117: MW | P117: =+IF(P$30="SCR",IF(OR(P113="Combined cycle",P113="Boiler"),'Data Entry'!P46/'Data Entry'!P52,'Data Entry'!P49),"") ->  | R117: =+IF(R$30="SCR",IF(OR(P113="Combined cycle",P113="Boiler"),'Data Entry'!P46/'Data Entry'!P52,'Data Entry'!P49),"") -> 
D120: =1+D117 -> 35 | H120: =+IF(OR(P113="Combustion Turbine",P113="Engine"),"Nominal Plate Heat Rate","Heat Rate") -> Heat Rate | M120: NPHR | N120: MMBtu/MWh | P120: =+IF(P$30="SCR",IF('Data Entry'!P52="","",'Data Entry'!P52),"") ->  | R120: =+IF(R$30="SCR",IF('Data Entry'!P52="","",'Data Entry'!P52),"") -> 
D122: =1+D120 -> 36 | H122: Heat Rate Factor | M122: HRF | P122: =+IF(P$30="SCR",IF(P120=0,"",P120/10),"") ->  | R122: =+IF(R$30="SCR",IF(R120=0,"",R120/10),"") ->  | T122: Defined by eq. (2.6), Ref. 1, §2.3.2- Heat Rate Factor, page 2-52 (p53-pdf), as the ratio of actual NPHR to a typical heat rate of 10 MMBtu/MWh used in developing capital cost equations.
D126: =1+D122 -> 37 | H126: Annual Hrs of Operation | M126: top, ems unit | N126: hrs | P126: =+IF(P$30="SCR",IF('Data Entry'!P111="","",'Data Entry'!P111),"") ->  | R126: =+IF(R$30="SCR",IF('Data Entry'!R111="","",'Data Entry'!R111),"") ->  | T126: Data Entry - Emission Unit Annual Hrs of Operation, Line 33, Columns 1 & 2. The air pollution control is assumed to operate at all times the emission unit is operating.
D129: =1+D126 -> 38 | H129: Heat Input Max Annual | M129: HI | N129: MMBtu/yr | P129: =+IF(P$30="SCR",IF(P126="","",IF(P113="Combined cycle",P115*P126,P117*P120*P126)),"") ->  | R129: =+IF(R$30="SCR",IF(R126="","",IF(P113="Combined cycle",R115*R126,R117*R120*R126)),"") ->  | T129: Calculated based on BMW, NPHR and emission unit operating time, top,ems unit or QB multiplied by top,ems unit.
D131: =1+D129 -> 39 | H131: Annual Actual MW Output | M131: Boutput | N131: MW/yr | P131: =+IF(P$30="SCR",P117*P126,"") ->  | R131: =+IF(R$30="SCR",R117*R126,"") ->  | T131: Power Output, BMW, (Line 34) multiplied by the emission Annual Hrs. of Operation, top, ems unit (Line 37).
G133: Operating Capacity Factors
D134: =1+D131 -> 40 | H134: Emission Unit Capacity Factor | M134: CF ems unit | P134: =+IF(P$30="SCR",IF(P126=0,"",P131/(P117*8760)),"") ->  | R134: =+IF(R$30="SCR",IF(R126=0,"",R131/(R117*8760)),"") ->  | T134: Per Ref. 1, § 2.3.3-System Capacity Factor, eq. (2.8a), p2-53 (p54-pdf). Since max. MW output is selected, eq. (2.8a) is also equivalent with the selected the hrs of operation divided by 8,760 hrs.
D138: =1+D134 -> 41 | H138: SCR Capacity Factor | M138: CF SCR | P138: =+IF(P$30="SCR",IF(P36="","",P36/P126),"") ->  | R138: =+IF(R$30="SCR",IF(R36="","",R36/R126),"") ->  | T138: Defined by eq. (2.9), Ref. 1, §2.3.3 - System Capacity Factor, page 2-53 (p54-pdf).
D140: =1+D138 -> 42 | H140: Total System Capacity Factor | M140: CF Total | P140: =+IF(P$30="SCR",IF(P138*P134=0,"",P138*P134),"") ->  | R140: =+IF(R$30="SCR",IF(R138*R134=0,"",R138*R134),"") ->  | T140: Defined by eq. (2.7), Ref. 1, §2.3.3 - System Capacity Factor, page 2-53 (p54-pdf).
G142: Fuel Data
D143: =1+D140 -> 43 | H143: Fuel Type | P143: =+IF(P$30="SCR",IF('Data Entry'!P56="","",'Data Entry'!P56),"") ->  | T143: =+IF(P143="Coal","Emission unit fuel type selected on Data Entry, Line 19. See also note on Line 19: Since Connecticut has only one coal-fired emission unit that burns a mix of bituminous and sub-bituminous coal only, "&"all specifications of this calculation for emission units burning coal are selected for bituminous coal.","Emission unit fuel type selected on Data Entry, Line 19.") -> Emission unit fuel type selected on Data Entry, Line 19.
D148: =1+D143 -> 44 | H148: Air Heater Factor | M148: AHF | P148: =+IF(P$30="SCR",IF(AND(P143="Coal",'Data Entry'!P64=3,'Data Entry'!P64>3),1,0),"") ->  | R148: =+IF(R$30="SCR",IF(AND(P143="Coal",'Data Entry'!P64=3,'Data Entry'!P64>3),1,0),"") ->  | T148: =+"Defined in Eq. (2.43), Ref 1, §2.4.1.1 - Utility Boilers, page 2-67 (p68-pdf), as multiplier for Air Pre-Heater Cost. AHF=1, if bituminous coal and SO2> 3lb/MMBtu, =0 if not true."&IF(P143="Coal"," Note: Since Connecticut has only one coal-fired emission unit that burns a mix of bituminous and (sub)bituminous coal, AHF is ''0'', and the air pre-heater term drops out of the overall SNCR cost eq. for all CT emission units.","") -> Defined in Eq. (2.43), Ref 1, §2.4.1.1 - Utility Boilers, page 2-67 (p68-pdf), as multiplier for Air Pre-Heater Cost. AHF=1, if bituminous coal and SO2> 3lb/MMBtu, =0 if not true.
D153: =1+D148 -> 45 | H153: =+IF(P143="Coal","Coal","Fuel")&" Factor" -> Fuel Factor | M153: =+IF(P143="Coal","CoalF","Fuel(F)") -> Fuel(F) | P153: =+IF(P$30="SCR",1,"") ->  | R153: =+IF(R$30="SCR",1,"") ->  | T153: Defined in Eq's. (2.41), (2.43) and (2.44), Ref 1, §2.4.1.1 - Utility Boilers, p2-66 (p67-pdf) & p2-67 (p68-pdf), as "CoalF" multiplier for coal units costs. In eq. (2.60) Ref 1, §2.4.2.-Total Annual Costs, p2-74 (p75-pdf), CoalF is replaced with a (Fuel) factor equal to 1, for oil- and gas fired emission units. CoalF (or FuelF) multiplier applied to CT units is = 1.
D159: =1+D153 -> 46 | H159: Fuel High Heating Value | M159: HHV | N159: =+IF(P143="Natural Gas","Btu/ft³","Btu/lb") -> Btu/lb | P159: =+IF(P$30="SCR",IF(P143="Natural Gas",VLOOKUP(MATCH(P143,fuels_id,0),fuels,tbl!$I$42,FALSE),IF(P143="Coal",VLOOKUP(MATCH(P143,fuels_id,0),fuels,tbl!$J$42,FALSE),IF(OR(P143="Natural Gas",P143="Coal",P143=""),"",VLOOKUP(MATCH(P143,fuels_id,0),fuels,tbl!$J$42,FALSE)))),"") ->  | R159: =+IF(R$30="SCR",IF(P143="Natural Gas",VLOOKUP(MATCH(P143,fuels_id,0),fuels,tbl!$I$42,FALSE),IF(P143="Coal",VLOOKUP(MATCH(P143,fuels_id,0),fuels,tbl!$J$42,FALSE),IF(OR(P143="Natural Gas",P143="Coal",P143=""),"",VLOOKUP(MATCH(P143,fuels_id,0),fuels,tbl!$J$42,FALSE)))),"") ->  | T159: Per US DOE-Biomass Energy Databook: | X159: http://cta.ornl.gov/bedb/appendix_a.shtml
D161: =1+D159 -> 47 | H161: Max. Fuel Consumption Rate | M161: =+IF(P143="Natural Gas","V(fuel)","m(fuel)") -> m(fuel) | N161: =+IF(P143="Natural Gas","CFH","lb/hr") -> lb/hr | P161: =+IF(P$30="SCR",P129*10^6/P126/P159,"") ->  | R161: =+IF(R$30="SCR",P129*10^6/P126/P159,"") ->  | T161: Calculated as hourly heat input (Line 38 divided by Line 37), and divided by the fuel HHV (Line 46), or Maximum Heat Rate Input (QB) on Line 33, divided by fuel HHV - Line 46.
D164: =1+D161 -> 48 | H164: Annual Fuel Consumption (estimate based on selected HHV) | M164: Annual Fuel | N164: =+IF(P143="Natural Gas","CF/yr","lb/yr") -> lb/yr | P164: =+IF(P$30="SCR",IF(P161="","",P161*P126),"") ->  | R164: =+IF(R$30="SCR",IF(R161="","",R161*R126),"") ->  | T164: Fuel consumption rate (Line 47) multiplied by the total annual hours of operation, (Line 37).
G167: Exhaust Flue Gas Flow Specifications
D168: =1+D164 -> 49 | H168: Exhaust Flow Temp Correction Factor | M168: Tin | N168: ºF | P168: =+IF(P$30="SCR",IFERROR((459.67+P41)/(459.67+'Data Entry'!P74),""),"") ->  | R168: =+IF(R$30="SCR",IFERROR((459.67+R41)/(459.67+'Data Entry'!P74),""),"") ->  | T168: Adjustment factor to determine exhaust flow rate at temperatures other than 700ᵒF (SCR default Tin), based on physics Charles' Law (V/T = constant).
D171: =1+D168 -> 50 | H171: Flue Gas Flow Rate (selected) | M171: q flue gas | N171: CFM | P171: =+IF(P$30="SCR",IF('Data Entry'!P75="","",P168*'Data Entry'!P75),"") ->  | R171: =+IF(R$30="SCR",R168*'Data Entry'!P75,"") ->  | T171: Flue Gas Flow provided on Data Entry, Line 25, corrected for 700ᵒF.
D173: =1+D171 -> 51 | H173: Base case Flue Gas Volumetric Flow Rate Factor(calculated) | M173: q fuel | N173: CFM/MMBtu/hr | P173: =+IF(P$30="SCR",IFERROR(P171/P115,""),"") ->  | R173: =+IF(R$30="SCR",IFERROR(R171/R115,""),"") ->  | T173: Defined in eq. (2.14), Ref. 1, §2.3.8 - Flue Gas Flow Rate, page 2-56 (p57-pdf). Factor is determined for comparison with EPA data (see Ref. 1, p2-56). Note: If the calculated base case factor is different from EPA data, then the flue flow rate entry (Data Entry, Line 25) ought to be revised.
G177: NOx Removal Performance
D178: =1+D173 -> 52 | H178: Uncontrolled NOx Emission Level | M178: NOxin | N178: lb/MMBtu | P178: =+IF(P$30="SCR",IF('Data Entry'!P78="","",'Data Entry'!P78),"") ->  | R178: =+IF(R$30="SCR",IF('Data Entry'!P78="","",'Data Entry'!P78),"") ->  | T178: Uncontrolled NOx rate entered on Data Entry page, Line 26.
D180: =1+D178 -> 53 | H180: Controlled NOx Outlet (required rate) | M180: NOxout | N180: lb/MMBtu | P180: =+IF(P$30="SCR",IF('Data Entry'!P80="","",'Data Entry'!P80),"") ->  | R180: =+IF(R$30="SCR",IF('Data Entry'!P80="","",'Data Entry'!P80),"") ->  | T180: Controlled NOx rate, as required by RCSA 22a-174-22e, and listed on Data Entry, Line 27.
D183: =1+D180 -> 54 | H183: Controlled NOx Outlet (selected) | M183: NOxout,sel | N183: lb/MMBtu | P183: =+IF(P$30="SCR",MAX(P180,P47,P178-P43*P178),"") ->  | R183: =+IF(R$30="SCR",MAX(R180,R47,R178-R43*R178),"") ->  | T183: =+"Determined as the highest among: the required controlled NOx out, the SCR lowest attained NOx out rate, or the NOx out value based on the "&IF(P$30="SCR",P43*100&"% ","")&"default efficiency." -> Determined as the highest among: the required controlled NOx out, the SCR lowest attained NOx out rate, or the NOx out value based on the default efficiency.
D186: =1+D183 -> 55 | H186: NOx Removal Efficiency (selected) | M186: h NOxR,sel | N186: % | P186: =+IF(P$30="SCR",IFERROR((P178-P183)/P178,""),"") ->  | R186: =+IF(R$30="SCR",IFERROR((R178-R183)/R178,""),"") ->  | T186: Defined by eq. (2.10) Ref. 1, § 2.3.5 - NOx Removal Efficiency, p2-54 (p55-pdf) and calculated based on NOxin on Line 52 and the value of NOxout sel, on Line 54.
D189: =1+D186 -> 56 | H189: NOx Removal Factor | M189: NRF | P189: =+IF(P$30="SCR",P186/0.8,"") ->  | R189: =+IF(R$30="SCR",R186/0.8,"") ->  | T189: For use with eq. (2.41) to calculate SCR cost, per Ref. 1, § 2.4.1.1-Utility Boilers, page 2-66 (p67-pdf).
D192: =1+D189 -> 57 | H192: NOx Removed Hourly Rate | M192: NOxR/hr | N192: lb/hr | P192: =+IF(P$30="SCR",IFERROR(P178*P186*P115,""),"") ->  | R192: =+IF(R$30="SCR",IFERROR(R178*R186*R115,""),"") ->  | T192: Defined by eq. (2.12), Ref. 1, §2.3.6 - NOx Removal Rates, page 2-55 (p56-pdf).
D195: =1+D192 -> 58 | H195: NOx Removed / yr | M195: NOxR | N195: tons | P195: =+IF(P$30="SCR",IFERROR((P178*P186*P115*P140*8760)/2000,""),"") ->  | R195: =+IF(R$30="SCR",IFERROR((R178*R186*R115*R140*8760)/2000,""),"") ->  | T195: Defined by eq. (2.11), Ref. 1, § 2.3.6 - NOx Removal Rates, page 2-54 (p55-pdf).
E197: II. | F197: SCR Reactor Calculations
G199: Catalyst Volume
D200: =1+D195 -> 59 | H200: NOx Efficiency Adjustment Factor | M200: hadj | P200: =+IF(P$30="SCR",IFERROR(0.2869+(1.058*P186),""),"") ->  | R200: =+IF(R$30="SCR",IFERROR(0.2869+(1.058*R186),""),"") ->  | T200: Factor in eq. (2.22), and defined by eq. (2.23), Ref. 1, §2.3.11 - Catalyst Volume, page 2-58 (p59-pdf).
D202: =1+D200 -> 60 | H202: Ammonia Slip Adjustment Factor | M202: Slipadj | P202: =+IF(P$30="SCR",IF(P80="","",1.2835-(0.0567*P80)),"") ->  | R202: =+IF(R$30="SCR",IF(R80="","",1.2835-(0.0567*R80)),"") ->  | T202: Factor in eq.(2.22), and defined by eq.(2.24), Ref. 1, §2.3.11 - Catalyst Volume, page 2-58 (p59-pdf).
D204: =1+D202 -> 61 | H204: NOx adjustment factor for inlet NOx | M204: NOxadj | P204: =+IF(P$30="SCR",IFERROR(0.8524+(0.3208*P178),""),"") ->  | R204: =+IF(R$30="SCR",IFERROR(0.8524+(0.3208*R178),""),"") ->  | T204: Factor in eq. (2.22), and defined by eq. (2.25), Ref. 1, §2.3.11 - Catalyst Volume, page 2-58 (p59-pdf).
D206: =1+D204 -> 62 | H206: Sulfur in Coal Adjustment Factor | M206: Sadj | P206: =+IF(P$30="SCR",IF(OR('Data Entry'!P62="",'Data Entry'!P62=0),1,0.9636+(0.0455*'Data Entry'!P62*100)),"") ->  | R206: =+IF(R$30="SCR",IF(OR('Data Entry'!P62="",'Data Entry'!P62=0),1,0.9636+(0.0455*'Data Entry'!P62*100)),"") ->  | T206: Factor in eq. (2.22), and defined by eq. (2.26), Ref. 1, §2.3.11 - Catalyst Volume, page 2-58 (p59-pdf).
D208: =1+D206 -> 63 | H208: Temperature Adjustment Factor | M208: Tadj | P208: =+IF(P$30="SCR",IF(P41="","",IF(P41=700,1,15.16-(0.03937*P41)+(0.0000274*P41^2))),"") ->  | R208: =+IF(R$30="SCR",IF(R41="","",IF(R41=700,1,15.16-(0.03937*R41)+(0.0000274*R41^2))),"") ->  | T208: Factor in eq. (2.22), and defined by eq. (2.27), Ref. 1 §2.3.11 - Catalyst Volume, page 2-59 (p60-pdf).
D211: =1+D208 -> 64 | H211: Volume estimate of the catalyst | M211: Volcatalyst | N211: ft³ | P211: =+IF(P$30="SCR",IF(P34="","",2.81*P115*P200*P202*P204*P206*P208/P34),"") ->  | R211: =+IF(R$30="SCR",IF(R34="","",2.81*R115*R200*R202*R204*R206*R208/R34),"") ->  | T211: Defined by empirical eq. (2.22), per Ref. 1, §2.3.11 - Catalyst Volume, page 2-58 (p59-pdf).
G213: Configuration & Dimensions
D214: =1+D211 -> 65 | H214: Catalyst Cross-sectional Area | M214: Acatalyst | N214: ft² | P214: =+IF(P$30="SCR",IFERROR(ROUNDUP(P171/($P$58*60),0),""),"") ->  | R214: =+IF(R$30="SCR",IFERROR(ROUNDUP(R171/($R$58*60),0),""),"") ->  | T214: Defined by eq. (2.28), per Ref. 1 §2.3.12 - SCR Reactor Dim's, p2-59 (p60-pdf).
D216: =1+D214 -> 66 | H216: SCR Cross-sectional Area | M216: ASCR | N216: ft² | P216: =+IF(P$30="SCR",IFERROR(ROUNDUP(1.15*P214,0),""),"") ->  | R216: =+IF(R$30="SCR",IFERROR(ROUNDUP(1.15*R214,0),""),"") ->  | T216: Per eq. (2.29), Ref. 1 §2.3.12 - SCR Reactor Dim's, page 2-59 (p60-pdf). ASCR > Acatalyst by 15% to account for module geometry and hardware.
D219: =1+D216 -> 67 | H219: Reactor Length (l) & Width (w) | M219: l = w | N219: ft | P219: =+IF(P$30="SCR",IFERROR(P216^0.5,""),"") ->  | R219: =+IF(R$30="SCR",IFERROR(R216^0.5,""),"") ->  | T219: =+"Square root from Catalyst Cross-Sectional Area. Area aspect ratio is l/w = "&P60&".0. Per Ref. 1, §2.3.12 - SCR Reactor Dim's, eq (2.30), page 2-59 (p60-pdf)." -> Square root from Catalyst Cross-Sectional Area. Area aspect ratio is l/w = .0. Per Ref. 1, §2.3.12 - SCR Reactor Dim's, eq (2.30), page 2-59 (p60-pdf).
H221: No. of Catalyst layers
D222: =1+D219 -> 68 | I222: Required | M222: nlayer req. | P222: =+IF(P$30="SCR",IFERROR(P211/($P$66*P214),""),"") ->  | R222: =+IF(R$30="SCR",IFERROR(R211/($R$66*R214),""),"") ->  | T222: Defined by eq. (2.31), per Ref. 1, §2.3.12 - SCR Reactor Dim's, p2-60 (p61-pdf).
D223: =1+D222 -> 69 | I223: Selected | M223: nlayer, sel | P223: =+IF(P$30="SCR",IFERROR(IF(ROUND(P222,0)<2,2,ROUND(P222,0)),""),"") ->  | R223: =+IF(R$30="SCR",IFERROR(IF(ROUND(R222,0)<2,2,ROUND(R222,0)),""),"") ->  | T223: =+IF(O222<2,"Min. number of layers selected should be ''2'', if the above result is less than ''2''.","") -> Min. number of layers selected should be ''2'', if the above result is less than ''2''.
D225: =1+D223 -> 70 | H225: No. of additional empty layers | M225: nlayer empty | P225: =+IF(P$30="SCR",ROUNDDOWN(P223/$P$53,0),"") ->  | R225: =+IF(R$30="SCR",ROUNDDOWN(R223/$R$53,0),"") ->  | T225: Selected based on the criteria, on Line 9, above: "Two full, one empty layer".
H227: Height of catalyst layer
D228: =1+D225 -> 71 | I228: hlayer (calculated) | M228: hlayer(clc) | N228: ft | P228: =+IF(P$30="SCR",IFERROR(P211/(P223*P214)+1,""),"") ->  | R228: =+IF(R$30="SCR",IFERROR(R211/(R223*R214)+1,""),"") ->  | T228: Defined by eq. (2.32), per Ref. 1 §2.3.12 - SCR Reactor Dim's, p2-60 (p61-pdf).
D229: =1+D228 -> 72 | I229: hlayer (selected) | M229: hlayer, sel | N229: ft | P229: =+IF(P$30="SCR",IF(P228="","",IF(P228<5,IF(P228<2.5,2.5,P228),"recalculate")),"") ->  | R229: =+IF(R$30="SCR",IF(R228="","",IF(R228<5,IF(R228<2.5,2.5,R228),"recalculate")),"") ->  | T229: =+IF(P228="","",IF(P228<5,IF(P228<2.5,"Min. height should be 2.5ft, if the result above is less than 2.5ft","Height of catalyst layer, h(layer,sel) is within standard industry range, 2.5 - 5.0 ft."),"Select a new superficial (face) velocity and recalculate V(calayst) and h(layer)")) -> 
D231: =1+D229 -> 73 | H231: Volcatalyst (re)calculated | M231: Volcatalyst,(clc) | N231: ft³ | P231: =+IF(P$30="SCR",IFERROR(P223*P214*(P229-1),""),"") ->  | R231: =+IF(R$30="SCR",IFERROR(R223*R214*(R229-1),""),"") ->  | T231: Volume catalyst (re)calculated using, the selected height, on Line 72.
D233: =1+D231 -> 74 | H233: ntotal (incl. empty layers) | M233: ntotal | P233: =+IF(P$30="SCR",IFERROR(P223+$P$225,""),"") ->  | R233: =+IF(R$30="SCR",IFERROR(R223+$R$225,""),"") ->  | T233: Eq. (2.33), per Ref. 1 §2.3.12 - SCR Reactor Dim's, page 2-60 (p61-pdf).
D235: =1+D233 -> 75 | H235: SCR height | M235: hSCR | N235: ft | P235: =+IF(P$30="SCR",IFERROR(P233*($P$69+P229)+$P$70,""),"") ->  | R235: =+IF(R$30="SCR",IFERROR(R233*($R$69+R229)+$R$70,""),"") ->  | T235: Eq. (2.34), per Ref. 1 §2.3.12 - SCR Reactor Dim's, page 2-61 (p62-pdf).
E237: III. | F237: Reagent Calculations
T238: Eq.(2.37), Ref.1, §2.3.13-Estim. Reagent Consumption & Tank Size,p2-62(p63-pdf).
G239: Flow Rates
D240: =1+D235 -> 76 | H240: =+PROPER(P78)&" Consumption" -> Consumption | M240: ṁreagent | N240: lb/hr | P240: =+IF(P$30="SCR",IFERROR(P178*P115*P186*$P$81*$P$79/'Data Entry'!$P$161,""),"") ->  | R240: =+IF(R$30="SCR",IFERROR(R178*R115*R186*$R$81*$R$79/'Data Entry'!$P$161,""),"") ->  | T240: Eq.(2.35), Ref.1, §2.3.13-Estim. Reagent Consumption & Tank Size,p2-61(p62-pdf).
H242: Ammonia 29% Solution
D243: =1+D240 -> 77 | I243: Mass Flow Rate | M243: ṁsol | N243: lb/hr | P243: =+IF(P$30="SCR",IFERROR(P240/$P$84,""),"") ->  | R243: =+IF(R$30="SCR",IFERROR(R240/$R$84,""),"") ->  | T243: Eq.(2.36), Ref.1, §2.3.13-Estim. Reagent Consumption & Tank Size,p2-61(p62-pdf).
D245: =1+D243 -> 78 | I245: Volumetric Flow Rate | M245: qsol | N245: gph | P245: =+IF(P$30="SCR",IFERROR(P243*7.4805/$P$86,""),"") ->  | R245: =+IF(R$30="SCR",IFERROR(R243*7.4805/$R$86,""),"") ->  | T245: Eq.(2.37), Ref.1, §2.3.13-Estim. Reagent Consumption & Tank Size,p2-62(p63-pdf).
G247: Storage
D248: =1+D245 -> 79 | H248: Storage Tank Volume | M248: Voltank | N248: gal | P248: =+IF(P$30="SCR",IFERROR(P245*P88*24,""),"") ->  | R248: =+IF(R$30="SCR",IFERROR(R245*R88*24,""),"") ->  | T248: Eq.(2.38), Ref.1, §2.3.13-Estim. Reagent Consumption & Tank Size,p2-62(p63-pdf).
E250: IV. | F250: Utilities
D252: =1+D248 -> 80 | H252: Power Consumption | M252: P | N252: kW | P252: =+IF(P$30="SCR",IFERROR(P117*1000*0.56/100*(P122*IF(P143="Coal",P153,1))^0.43,""),"") ->  | R252: =+IF(R$30="SCR",IFERROR(R117*1000*0.56/100*(R122*IF(P143="Coal",R153,1))^0.43,""),"") ->  | T252: Estimated for SCR equipment, ammonia vaporization, water vaporization, and additional ID fan power, using eq. (2.60) or eq. (2.61), Ref. 1, §2.4.2. Total Annual Costs, page 2-74, (p75-pdf). Note: Eqs. (2.60) and (2.61), are equivalent since their first terms are equal, BMW = QB/NPHR.
E258: SCR COST ESTIMATION
E260: TOTAL CAPITAL COST
E262: I. | F262: Total Capital Investment (TCI) Estimate
G264: Retrofit Factor
D265: =1+D252 -> 81 | H265: Selective Catalytic Reduction System | M265: RFSCR | P265: =+IF(P$30="SCR",IF('Data Entry'!P88="","",'Data Entry'!P88),"") ->  | T265: SCR System Retrofit Factor entered on Data Entry page, Line 30.
G267: =+IF(AND(P113="Boiler",P143="Coal"),"SCR Partial Costs","Space intentionally left blank") -> Space intentionally left blank | P267: =+IF(AND(P113="Boiler",P143="Coal"),"Note:","") -> 
P268: =+IF(AND(P113="Boiler",P143="Coal"),"The SCR partial costs for coal-fired emission units are calculated using EPA's proposed formulas for utility boliers.","") -> 
D270: =1+D265 -> 82 | H270: =+IF(P$30="SCR",IF(AND(P113="Boiler",P143="Coal"),"Capital Cost of SCR Base Unit",""),"") ->  | M270: =+IF(P$30="SCR",IF(AND(P113="Boiler",P143="Coal"),"SCRcost",""),"") ->  | N270: =+IF(P$30="SCR",IF(AND(P113="Boiler",P143="Coal"),"$",""),"") ->  | P270: =+IF(P$30="SCR",IF(AND($P$113="Boiler",$P$143="Coal"),270000*(P189)^0.2*(P117*P122*P153)^0.92*P104*$P$265,""),"") ->  | R270: =+IF(R$30="SCR",IF(AND($P$113="Boiler",$P$143="Coal"),270000*(R189)^0.2*(R117*R122*R153)^0.92*R104*$P$265,""),"") ->  | T270: =+IF(P$30="SCR",IF(AND(P113="Boiler",P143="Coal"),"Calculated with eq. (2.41), Ref. 1 §2.4.1.1 - Utility Boilers, page 2-66 (p67-pdf).","Line 82 - intentionally left blank"),"") -> 
D271: =1+D270 -> 83 | H271: =+IF(P$30="SCR",IF(AND(P113="Boiler",P143="Coal"),"Reagent Preparation Cost",""),"") ->  | M271: =+IF(P$30="SCR",IF(AND(P113="Boiler",P143="Coal"),"RPC",""),"") ->  | N271: =+IF(P$30="SCR",IF(AND(P113="Boiler",P143="Coal"),"$",""),"") ->  | P271: =+IF(P$30="SCR",IF(AND($P$113="Boiler",$P$143="Coal"),490000*((P178*P117*P120)*P186)^0.25,""),"") ->  | R271: =+IF(R$30="SCR",IF(AND($P$113="Boiler",$P$143="Coal"),490000*((R178*R117*R120)*R186)^0.25,""),"") ->  | T271: =+IF(P$30="SCR",IF(AND(P113="Boiler",P143="Coal"),"Eq. (2.42), Ref. 1 §2.4.1.1 - Utility Boilers, page 2-66 (p67-pdf).","Line 83 - intentionally left blank"),"") -> 
D272: =1+D271 -> 84 | H272: =+IF(P$30="SCR",IF(AND(P113="Boiler",P143="Coal"),"Balance of Plant Cost",""),"") ->  | M272: =+IF(P$30="SCR",IF(AND(P113="Boiler",P143="Coal"),"BPC",""),"") ->  | N272: =+IF(P$30="SCR",IF(AND(P113="Boiler",P143="Coal"),"$",""),"") ->  | P272: =+IF(P$30="SCR",IF(AND($P$113="Boiler",$P$143="Coal"),460000*(P117*P122*P153)^0.42*P104*$P$265,""),"") ->  | R272: =+IF(R$30="SCR",IF(AND($P$113="Boiler",$P$143="Coal"),460000*(R117*R122*R153)^0.42*R104*$P$265,""),"") ->  | T272: =+IF(P$30="SCR",IF(AND(P113="Boiler",P143="Coal"),"Eq. (2.44), Ref. 1 §2.4.1.1 - Utility Boilers, page 2-67 (p68-pdf).","Line 84 - intentionally left blank"),"") -> 
D273: =1+D272 -> 85 | H273: =+IF(P$30="SCR",IF(AND(P113="Boiler",P143="Coal"),"Air Pre-Heater Modification Cost",""),"") ->  | M273: =+IF(P$30="SCR",IF(AND(P113="Boiler",P143="Coal"),"APHC",""),"") ->  | N273: =+IF(P$30="SCR",IF(AND(P113="Boiler",P143="Coal"),"$",""),"") ->  | P273: =+IF(P$30="SCR",IF(AND($P$113="Boiler",$P$143="Coal"),69000*(P115/10*P153)^0.78*P148,""),"") ->  | R273: =+IF(R$30="SCR",IF(AND($P$113="Boiler",$P$143="Coal"),69000*(R115/10*R153)^0.78*R148,""),"") ->  | T273: =+IF(P$30="SCR",IF(AND(P113="Boiler",P143="Coal"),"Eq. (2.43), Ref. 1 §2.4.1.1 - Utility Boilers, page 2-67 (p68-pdf). APHC is zero for coal with SO₂ content less than 3 lb/MMBtu and all other fuels.","Line 85 - intentionally left blank"),"") -> 
D276: =1+D273 -> 86 | G276: =+IF($P$113="Boiler","","Cost Adjustment Factor") -> Cost Adjustment Factor | M276: =+IF($P$113="Boiler","","CAF") -> CAF | P276: =+IF(P$30="SCR",IF(P113="Boiler","",IF(P143="Natural Gas",1.1,IF(P143="Coal",0,1.5))),"") ->  | R276: =+IF(R$30="SCR",IF(P113="Boiler","",IF(P143="Natural Gas",1.1,IF(P143="Coal",0,1.5))),"") ->  | T276: =+IF($P$113="Boiler","Line 86 - intentionally left blank",IF(P276=0,"Error: Emission units other than boliers are oil- and gas- fired units; Select other fuel than coal on Data Entry, Line 19.","Multiplier used with the TCI for utility boilers so that it may be applied to all other units (i.e., engines and turbines). EPA has not provided a specific formula for the turbines and engines in the 2016 referenced documents.")) -> Multiplier used with the TCI for utility boilers so that it may be applied to all other units (i.e., engines and turbines). EPA has not provided a specific formula for the turbines and engines in the 2016 referenced documents.
D280: =1+D276 -> 87 | G280: Total Capital Investment | M280: TCI | N280: $ | P280: =+IF(P$30="SCR",IF($P$113="Boiler",IF($P$143="Coal",1.3*(P270+P271+P273+P272),80000*(200/P117)^0.35*P117*P104*P265),80000*(200/P117)^0.35*P117*P104*P265*P276),"") ->  | R280: =+IF(R$30="SCR",IF($P$113="Boiler",IF($P$143="Coal",1.3*(R270+R271+R273+R272),80*(200/(R115/R120))^0.35*(R115/R120)*R104*1000),80*(200/(R115/R120))^0.35*(R115/R120)*R104*1000*R276),"") ->  | T280: =+IF(P280=0,"Error: Check unit type selected on Data Entry , Line 10, and fuel on Data Entry, Line 19 - Only boilers may burn coal, all other emission units are oil- and gas-fired emission units. All field cost elements below are blank since TCI is zero by error. ",IF(P143="Coal","Calculated with eq. (2.40), Ref. 1, §2.4.1.1 - Utility Boilers, page 2-65 (p66-pdf) for coal-fired boilers.","Calculated with eq. (2.45), Ref. 1, §2.4.1.1 - Utility Boilers, page 2-68 (p69-pdf) for oil- and gas-fired utility boilers")&IF(G276="","(≥25MW to 500 MW). ",", multiplied by CAF to assess TCI for gas- and oil-fired turbines, combined cycle units or engines.")) -> Calculated with eq. (2.45), Ref. 1, §2.4.1.1 - Utility Boilers, page 2-68 (p69-pdf) for oil- and gas-fired utility boilers, multiplied by CAF to assess TCI for gas- and oil-fired turbines, combined cycle units or engines.
E283: II. | F283: Annual Costs
G285: Direct Annual Elements Cost
D286: =1+D280 -> 88 | H286: Annual Maintenance (0.5% TCI) | M286: AMC | N286: $/yr | P286: =+IF(P$30="SCR",IF(P280=0,"",0.005*P280),"") ->  | R286: =+IF(R$30="SCR",IF(R280=0,"",0.005*R280),"") ->  | T286: Annual maintenance labor and material (including nozzle tips for injectors) is assumed 0.5% of TCI, per Ref. 1, §2.4.2 -Total Annual Costs, eq. (2.57), page 2-73 (p74-pdf).
D290: =1+D286 -> 89 | H290: Annual Reagent Cost | M290: ARC | N290: $/yr | P290: =+IF(P$30="SCR",IF(P280=0,"",IFERROR(P240*P140*8760*'Data Entry'!$P$149,"")),"") ->  | R290: =+IF(R$30="SCR",IF(R280=0,"",IFERROR(R240*R140*8760*'Data Entry'!$P$149,"")),"") ->  | T290: Calculated based on annual ammonia consumption (in lb/yr) and specific cost, per eq's. (2.58) and (2.59), Ref. 1 §2.4.2. - Total Annual Cost, p2-74 (p75-pdf), where qsol is replaced with ṁreagent, estimated by eq. (2.35). Note: Eq. (2.35) applies since the "Reagent Cost" is provided (in Data Entry, Line 43) in $/lb, instead of $/gal.
D295: =1+D290 -> 90 | H295: Annual Electricity | M295: AEC | N295: $/yr | P295: =+IF(P$30="SCR",IF(P280=0,"",IFERROR(P252*P140*8760*'Data Entry'!$P$143,"")),"") ->  | R295: =+IF(R$30="SCR",IF(R280=0,"",IFERROR(R252*R140*8760*'Data Entry'!P143,"")),"") ->  | T295: Based on the annual power consumption (P, Line 77), multiplied by the control operating time, top,control, Line 3 (or equivalent CFTotal x 8,760) and electricity specific cost (Data Entry, Line 41), per eq (2.62), Ref. 1 §2.4.2. - Total Annual Cost, page 2-74 (p75-pdf).
D299: =1+D295 -> 91 | H299: Catalyst Replacement Cost | M299: CRC | N299: $ | P299: =+IF(P$30="SCR",IF(P280=0,"",IFERROR(P231*P34*P94/P223,"")),"") ->  | R299: =+IF(R$30="SCR",IF(R280=0,"",IFERROR(R231*R34*R94/R223,"")),"") ->  | T299: Per eq. (2.63), Ref. 1, §2.4.2. - Total Annual Cost, page 2-76 (p77-pdf).
D301: =1+D299 -> 92 | I301: Yrs of catalyst life | M301: Y | N301: yrs | P301: =+IF(P$30="SCR",IF(P280=0,"",IF(P96="","",ROUNDUP(P96/P36,0))),"") ->  | R301: =+IF(R$30="SCR",IF(R280=0,"",IF(R96="","",ROUNDUP(R96/R36,0))),"") ->  | T301: Operating life of the catalyst, CLife, Line 28 (in hrs) divided by the control operating time, top,control, Line 3 (in hrs) per eq.(2.66), Ref. 1, §2.4.2. - Total Annual Cost, page 2-77 (p78-pdf).
D305: =1+D301 -> 93 | I305: Catalyst Future Worth Factor | M305: FWF | P305: =+IF(P$30="SCR",IFERROR('Data Entry'!$P$130/((1+'Data Entry'!$P$130)^P301-1),""),"") ->  | R305: =+IF(R$30="SCR",IFERROR('Data Entry'!$P$130/((1+'Data Entry'!$P$130)^R301-1),""),"") ->  | T305: FWF applied to catalyst replacement, assuming the same interest rate listed in Data Entry, on Line 38. FWF calculated per eq. (2.65), Ref. 1, §2.4.2. page 2-76 (p77-pdf).
H307: Annual Catalyst Cost
D308: =1+D305 -> 94 | I308: Method 1 | M308: ACRC1 | N308: $/yr | P308: =+IF(P$30="SCR",IFERROR(P305*P299,""),"") ->  | R308: =+IF(R$30="SCR",IFERROR(R305*R299,""),"") ->  | T308: Method 1 - Catalyst Replacement Cost (ACR) times Catalyst FWF, per eq. (2.64), Ref. 1, §2.4.2. p2-76 (p77-pdf).
D310: =1+D308 -> 95 | I310: Method 2 | M310: ACRC2 | N310: $/yr | P310: =+IF(P$30="SCR",IF(P280=0,"",IFERROR(P117*0.4*P153^2.9*(P189)^0.71*$P$95,"")),"") ->  | R310: =+IF(R$30="SCR",IF(R280=0,"",IFERROR(R117*0.4*R153^2.9*(R189)^0.71*$R$95,"")),"") ->  | T310: Method 2 - Per Sargent & Lundy, LLC, empirical eq. (2.67), Ref. 1, §2.4.2. p2-77 (p78-pdf).
G312: Direct Annual Cost - DAC
D313: =1+D310 -> 96 | H313: Method 1 | M313: DAC1 | N313: $/yr | P313: =+IF(P$30="SCR",IFERROR(P286+P290+P295+P308,""),"") ->  | R313: =+IF(R$30="SCR",IFERROR(R286+R290+R295+R308,""),"") ->  | T313: Sum of the above direct annual costs (maintenance, reagent, electricity and catalyst- Method 1, - Method 2), per Ref. 1, §2.4.2. - Total Annual Cost, eq. (2.56), page 2-73 (p74-pdf).
D314: =1+D313 -> 97 | H314: Method 2 | M314: DAC2 | N314: $/yr | P314: =+IF(P$30="SCR",IFERROR(P286+P290+P295+P310,""),"") ->  | R314: =+IF(R$30="SCR",IFERROR(R286+R290+R295+R310,""),"") -> 
G316: Indirect Annual Cost (IDAC)
D317: =1+D314 -> 98 | H317: Administrative Charges | M317: AC | N317: $/yr | P317: =+IF(P$30="SCR",IFERROR(0.03*('Data Entry'!P119*P99*P101+0.4*P286),""),"") ->  | R317: =+IF(R$30="SCR",IFERROR(0.03*('Data Entry'!R119*R99*R101+0.4*R286),""),"") ->  | T317: Per Ref. 1, §2.4.2. - Total Annual Cost, eq. (2.69), page 2-78 (p79-pdf).
D319: =1+D317 -> 99 | H319: Capital Recovery | M319: CR | N319: $/yr | P319: =+IF(P$30="SCR",IFERROR('Data Entry'!P137*P280,""),"") ->  | R319: =+IF(R$30="SCR",IFERROR('Data Entry'!P137*R280,""),"") ->  | T319: Per Ref. 1 §2.4.2. - Total Annual Cost, eq. (2.70), page 2-79 (p80-pdf).
D321: =1+D319 -> 100 | H321: Indirect Annual Costs | M321: IDAC | N321: $/yr | P321: =+IF(P$30="SCR",IFERROR(P319+P317,""),"") ->  | R321: =+IF(R$30="SCR",IFERROR(R319+R317,""),"") ->  | T321: Total of the above indirect costs, Line 98 and Line 99, per Ref. 1 §2.4.2. - Total Annual Cost, eq. (2.68), page 2-78 (p79-pdf).
G323: Total Annual Cost
D324: =1+D321 -> 101 | H324: Method 1 | M324: TAC1 | N324: $/yr | P324: =+IF(P$30="SCR",IFERROR(P313+P321,""),"") ->  | R324: =+IF(R$30="SCR",IFERROR(R313+R321,""),"") ->  | T324: Total of direct (Method 1) and indirect costs, per eq. (2.72), Ref. 1 §2.4.2. p2-79 (p80-pdf).
D326: =1+D324 -> 102 | H326: Method 2 | M326: TAC2 | N326: $/yr | P326: =+IF(P$30="SCR",IFERROR(P314+P321,""),"") ->  | R326: =+IF(R$30="SCR",IFERROR(R314+R321,""),"") ->  | T326: Total of direct (Method 2) and indirect costs, per eq. (2.72), Ref. 1 §2.4.2. p2-79 (p80-pdf).
D328: =1+D326 -> 103 | E328: III. | F328: Nox Removal per year | M328: NOxR | N328: tons | P328: =+IF(P$30="SCR",IF(P280=0,"",P195),"") ->  | R328: =+IF(R$30="SCR",IF(R280=0,"",R195),"") ->  | T328: Tons of NOx removed calculated above, on Line 58.
E330: IV. | F330: Control Cost Effectiveness
D332: =1+D328 -> 104 | G332: Base Year | P332: =+IF(P$30="SCR",'Data Entry'!P126,"") ->  | T332: Data Entry, Line 36 - Selected base year of EPA's cost analysis.
D333: =1+D332 -> 105 | H333: Cost Effectiveness Method 1 | M333: Costeffect,$2012,1 | N333: 2012$/ton NOxR | P333: =+IF(P$30="SCR",IFERROR(P324/P328,""),"") ->  | R333: =+IF(R$30="SCR",IFERROR(R324/R328,""),"") ->  | T333: Control cost effectiveness based on either TAC (method 1 or method 2) divided by the annual tons of NOx removed, per eq. (2.73), Ref. 1 §2.4.2. p2-79 (p80-pdf).
D334: =1+D333 -> 106 | H334: Cost Effectiveness Method 2 | M334: Costeffect,$2012,2 | N334: 2012$/ton NOxR | P334: =+IF(P$30="SCR",IFERROR(P326/P328,""),"") ->  | R334: =+IF(R$30="SCR",IFERROR(R326/R328,""),"") -> 
D336: =1+D334 -> 107 | G336: Year Control is effective | P336: =+IF(P$30="SCR",'Data Entry'!$P$84,"") ->  | T336: Year control is effective (or current year), as entered on Data Entry, Line 28.
D337: =1+D336 -> 108 | H337: Cost Effectiveness Method 1 | M337: Costeffect,yr,1 | N337: $/ton NOxR | P337: =+IF(P$30="SCR",IFERROR(P333*'Data Entry'!$P$85,""),"") ->  | R337: =+IF(R$30="SCR",IFERROR(R333*'Data Entry'!$P$85,""),"") ->  | T337: Control cost effectiveness adjusted for the year air pollution control is effective (or current year), for either Method 1 or Method 2.
D338: =1+D337 -> 109 | H338: Cost Effectiveness Method 2 | M338: Costeffect,yr,2 | N338: $/ton NOxR | P338: =+IF(P$30="SCR",IFERROR(P334*'Data Entry'!$P$85,""),"") ->  | R338: =+IF(R$30="SCR",IFERROR(R334*'Data Entry'!$P$85,""),"") -> 

Sheet SNCR
Z5: Revision: | AA5: 02
Z6: Rev. Date: | AA6: 2016-08-31
K9: AIR POLLUTION CONTROL COST EFFECTIVENESS ASSESSMENT FOR USE WITH RCSA SECTION 22a-174-22e(h)
R10: References: | S10: 1 | T10: EPA Air Pollution Control Cost Manual - Seventh Edition, Section 4 - NOx Controls: Chapter 1 - Selective Noncatalytic Reduction, May 2016.
S12: =1+S10 -> 2 | T12: EPA Air Pollution Control Cost Manual - Seventh Edition, Section 4 - NOx Controls: Chapter 2 - Selective Catalytic Reduction, May 2016.
K14: SELECTIVE NONCATALYTIC REDUCTION - SNCR | S14: =1+S12 -> 3 | T14: EPA Air Pollution Control Cost Manual - Sixth Edition (EPA 452/B-02-001), January 2002.
S16: =1+S14 -> 4 | T16: Alternative Control Techniques Document - NOx Emissions from Stationary Gas Turbines - EPA ACT Document No.: EPA-453/R-93-007.
S18: =1+S16 -> 5 | T18: U.S Department of Labor - Bureau of Labor Statistics: CPI Inflation Calculator.
D20: Line | F20: Item Description | M20: Symbol | N20: Units | P20: Input | T20: Comments
P21: Column 1. | R21: Column 2.
P22: Default Operation | R22: Limited Operation
D24: 0
E25: SNCR ASSUMPTIONS | T25: =+IF('Data Entry'!P42="Yes","","Note:") -> Note:
T26: =+IF('Data Entry'!P42="Yes","","Select SNCR on Data Entry, Line 14, in order to see control cost effectiveness calculation.") -> Select SNCR on Data Entry, Line 14, in order to see control cost effectiveness calculation.
E27: I. | F27: Air Pollution Control Assumptions
G29: Control Unit Specifications
D30: 1 | H30: Control Type | P30: =+IF('Data Entry'!P42="Yes",IF(OR('Data Entry'!P56="",'Data Entry'!P78="",'Data Entry'!P80=""),"",IF(LEFT('Data Entry'!T56,5)="Error","","SNCR")),"") ->  | R30: =+IF(P30="","",IF(AND('Data Entry'!P42="Yes",'Data Entry'!R111>0),"SNCR","")) ->  | T30: =IF(AND('Data Entry'!P42="Yes",OR('Data Entry'!P$22="",'Data Entry'!P$24="",'Data Entry'!P$29="",'Data Entry'!P$31="",'Data Entry'!P$32="",AND('Data Entry'!P$46="",'Data Entry'!P$49=""),'Data Entry'!P$52="",'Data Entry'!P$56="",'Data Entry'!P$62="",'Data Entry'!P$64="",'Data Entry'!P$66="",'Data Entry'!P$78="",'Data Entry'!P$80="",'Data Entry'!P$84="",'Data Entry'!P$85="",'Data Entry'!P$89="",'Data Entry'!P$143="",'Data Entry'!P$146="")),"Error: Check Data Entry page and ensure that SNCR is selected on Line 14 and all other required fields are specified. ",IF(AND('Data Entry'!P42="Yes",'Data Entry'!R111>0),"SNCR cost effectiveness calculation is displayed down the column, for both ''Default Operation'' and ''Limited Operation''.","SNCR cost effectiveness calculation is displayed down the column, for ''Default Operation''. To show calculation on ''Limited Operation'' column, enter no. of hours on Data Entry page, Line 33, Column 2, otherwise the entire column is blank.")) -> SNCR cost effectiveness calculation is displayed down the column, for ''Default Operation''. To show calculation on ''Limited Operation'' column, enter no. of hours on Data Entry page, Line 33, Column 2, otherwise the entire column is blank.
D34: =1+D30 -> 2 | H34: Number of SNCRs per Combustion Unit | M34: NSNCR | P34: =+IF(P$30="SNCR",1,"") ->  | R34: =+IF(R$30="SNCR",1,"") ->  | T34: Selected design criteria: one SNCR system per emission unit.
D36: =1+D34 -> 3 | H36: SNCR Operating Time | M36: top, control | N36: hrs | P36: =+IF(P$30="SNCR",'Data Entry'!P119*24,"") ->  | R36: =+IF(R$30="SNCR",'Data Entry'!R119*24,"") ->  | T36: Air Pollution Control Annual Hrs of Operation, as entered on Data Entry, Line 34.
D38: =1+D36 -> 4 | H38: SNCR Removal Efficiency (default value) | M38: h NOxR | N38: % | P38: =+IF(P$30="SNCR",40%,"") ->  | R38: =+IF(R$30="SNCR",40%,"") ->  | T38: Assumed 40%. Per Ref. 1, §1.1 - Introduction, pages 1-3 (p3-pdf) through 1-7 (p7-pdf), urea based SNCR's exhibit NOx reduction efficiencies of 25% to 60%. Selected efficiency may be adjusted if NOxout calculated value falls below the SNCR attainable limit.
D43: =1+D38 -> 5 | H43: SNCR Lowest Attained NOxout Rate | M43: NOxout, min | N43: lb/MMBtu | P43: =+IF(P$30="SNCR",IF('Data Entry'!$P$38="non-FB", 0.1,0.08),"") ->  | R43: =+IF(R$30="SNCR",IF('Data Entry'!$P$38="non-FB", 0.1,0.08),"") ->  | T43: Lowest achievable NOxout rate, per Ref. 1, §1.4-Cost Analysis, page 1-43 (p43-pdf), for non-FB boilers (0.1 lb/MMBtu) and FB boilers (0.08 lb/MMBtu). The limit of 0.08 lb/MMBtu, also assumed for all other types of emission units.
E46: II. | F46: Reagent and Reagent Solutions Specifications
G48: Reagent Properties
D49: =1+D43 -> 6 | H49: Reagent type | P49: =+IF(P$30="SNCR","urea","") ->  | R49: =+IF(R$30="SNCR","urea","") ->  | T49: Selected SNCR default reagent, based on considerations in Ref. 1, §1.2.2 - Reagents, pages 1-13 through 1-15 (p13-p15, pdf).
D52: =1+D49 -> 7 | H52: Reagent Molecular Weight | M52: Mreagent | N52: lb/mole | P52: =+IF(P$30="SNCR",VLOOKUP(MATCH(P49,c_id,0),cmp,tbl!$G$7,FALSE),"") ->  | R52: =+IF(R$30="SNCR",VLOOKUP(MATCH(R49,c_id,0),cmp,tbl!$G$7,FALSE),"") ->  | T52: Urea Molecular Weight, per Ref. 1, Table 1.4, page 1-14 (p14-pdf).
D54: =1+D52 -> 8 | H54: Theoretical Stoichiometric Ratio | M54: SRT | P54: =+IF(P$30="SNCR",IF(P49="ammonia",1,IF(P49="urea",2,"Check the reagent")),"") ->  | R54: =+IF(R$30="SNCR",IF(R49="ammonia",1,IF(R49="urea",2,"Check the reagent")),"") ->  | T54: Term in eq. (1.15), Ref. 1, §1.3.1 - Design Parameters for Study-Level Estimate, Normalized Stoichiometric Ratio, page 1-38 (p38-pdf).
G56: Water Properties
D57: =1+D54 -> 9 | H57: Water Standard Density | M57: ρwater | N57: lb/gal | P57: =+IF(P$30="SNCR",VLOOKUP(MATCH(LEFT(H57,5),p_id,0),prp,tbl!$H$17,FALSE),"") ->  | R57: =+IF(R$30="SNCR",VLOOKUP(MATCH(LEFT(H57,5),p_id,0),prp,tbl!$H$17,FALSE),"") ->  | T57: Per Ref.1, §1.4.2-Total Annual Cost, Water Consumption, eq.(1.44), p1-54(p54-pdf).
D58: =1+D57 -> 10 | H58: Water Heat of Vaporization (at 310ºF) | M58: Hv | N58: Btu/lb | P58: =+IF(P$30="SNCR",VLOOKUP(MATCH(LEFT(H58,5),p_id,0),prp,tbl!$I$17,FALSE),"") ->  | R58: =+IF(R$30="SNCR",VLOOKUP(MATCH(LEFT(H58,5),p_id,0),prp,tbl!$I$17,FALSE),"") ->  | T58: Per Ref. 1, §1.4.2 - Total Annual Cost, Additional Fuel to Vaporize Water in Reagent Solution, eq. (1.47) pages 1-54 & 1-55 (p54-p55, pdf); Note: Urea 10% solution has same Hv as water. 310ºF is the representative temperature for an exiting flue gas.
G61: Storage
D62: =1+D58 -> 11 | H62: Stored Urea Solution Concentration | M62: Curea sol stored | N62: % by weight | P62: =+IF(P$30="SNCR",50%,"") ->  | R62: =+IF(R$30="SNCR",50%,"") ->  | T62: Typical value, per Ref. 1, §1.2.2 - Reagents, page 1-14 (p14-pdf).
D64: =1+D62 -> 12 | H64: Urea 50% Solution Density | M64: ρ50% urea | N64: lb/ft³ | P64: =+IF(P$30="SNCR",VLOOKUP(MATCH(P49&" "&P62*100&"%",p_id,0),prp,tbl!$G$17,FALSE),"") ->  | R64: =+IF(R$30="SNCR",VLOOKUP(MATCH(R49&" "&R62*100&"%",p_id,0),prp,tbl!$G$17,FALSE),"") ->  | T64: Per Table 1-4-Urea and Ammonia Reagent Properties, Ref. 1, §1.2.2-Reagents, page 1-14 (p14-pdf).
D66: =1+D64 -> 13 | H66: Injected Urea Concentration | M66: Curea sol injected | N66: % by weight | P66: =+IF(P$30="SNCR",10%,"") ->  | R66: =+IF(R$30="SNCR",10%,"") ->  | T66: Per Ref. 1, §1.2.4 - SNCR System, Diluting, Metering and Mixing of the Reagent, page 1-26 (p26-pdf). Selected 10% as default.
D68: =1+D66 -> 14 | H68: No. Storage Days | M68: tstorage | N68: days | P68: =+IF(P$30="SNCR",14,"") ->  | R68: =+IF(R$30="SNCR",14,"") ->  | T68: Common onsite storage requirement, per Ref. 1, §1.3.1 - Design Parameters for Study-Level Estimate, Estimating Reagent Consumption and Tank Size, eq.(1.21), page 1-41 (p41-pdf).
E71: III. | F71: Specific Economic Factors
G73: SNCR Costs Factors
D74: =1+D68 -> 15 | H74: Ash Disposal Cost | M74: Costash | N74: $/ton | P74: =+IF(P$30="SNCR",IF(P121="coal",15,"N/A"),"") ->  | R74: =+IF(R$30="SNCR",IF(P121="coal",15,"N/A"),"") ->  | T74: For coal unit only, per Ref. 1, § 1.5-Example Problem, p1-58 (p58-pdf).
G76: Capital Cost Elevation Factor
D77: =1+D74 -> 16 | H77: Elevation Factor | M77: ELEVF | P77: =+IF(P$30="SNCR",IF('Data Entry'!P29="","",14.696/(2116*((59-0.00356*'Data Entry'!P29+459.7)/518.6)^5.256/144)),"") ->  | R77: =+IF(R$30="SNCR",IF('Data Entry'!P29="","",14.696/(2116*((59-0.00356*'Data Entry'!P29+459.7)/518.6)^5.256/144)),"") ->  | T77: Calculated per eq's. (1.22) & (1.23), Ref. 1, §1.4.1 - Total Capital Investment, page 1-45 (p45-pdf).
E81: SNCR SIZING
E83: I. | F83: Emission Unit Performance Data at 8760 hrs
G85: Emission Unit Data
D86: =1+D77 -> 17 | H86: Unit Type | P86: =+IF(P$30="SNCR",IF('Data Entry'!P32="","",'Data Entry'!P32),"") ->  | T86: Emission unit type selected on Data Entry page Line 10.
D88: =1+D86 -> 18 | H88: =+IF(P86="Boiler","Boiler Type Factor (for boilers only)","") ->  | M88: =+IF(P86="Boiler","BTF","") ->  | P88: =+IF(P$30="SNCR",IF($P$86="Boiler",IF('Data Entry'!$P$38="non-FB",1,0.75),""),"") ->  | R88: =+IF(R$30="SNCR",IF($P$86="Boiler",IF('Data Entry'!$P$38="non-FB",1,0.75),""),"") ->  | T88: =+IF(P86="Boiler","Based on the specification in the Data Entry ''Combustion Type'' field, whether the boiler is ''FB'' (BTF=0.75) or ''non-FB'' (BTF=1).","Line 18 - intentionally left blank") -> Line 18 - intentionally left blank
D91: =1+D88 -> 19 | H91: Maximum Heat Rate Input | M91: QB | N91: MMBtu/hr | P91: =+IF(P$30="SNCR",IF(OR(P86="Combined cycle",P86="Boiler"),'Data Entry'!P46,IFERROR('Data Entry'!P49*'Data Entry'!P52,"")),"") ->  | R91: =+IF(R$30="SNCR",IF(OR(P86="Combined cycle",P86="Boiler"),'Data Entry'!P46,IFERROR('Data Entry'!P49*'Data Entry'!P52,"")),"") ->  | T91: =+IF(T92="","Space intentionally left blank","") -> Space intentionally left blank
T92: =+IF(P30="","",IF(P91='Data Entry'!P46,"","Error: Check, Max. Heat Rate Input should be "&P91&" MMBtu/hr, instead of "&IF('Data Entry'!P46="","''Blank''",'Data Entry'!P46)&" MMBtu/hr, as selected on ''Data Entry'' page, if NPHR is listed as "&'Data Entry'!P52&" MMBtu/MWh"&" and Nominal Power Output is "&'Data Entry'!P49&" MW.")) -> 
D93: =1+D91 -> 20 | H93: Power Output (MW Rating) at full load capacity. | M93: BMW | N93: MW | P93: =+IF(P$30="SNCR",IF(OR(P86="Combined cycle",P86="Boiler"),'Data Entry'!P46/'Data Entry'!P52,'Data Entry'!P49),"") ->  | R93: =+IF(R$30="SNCR",IF(OR(P86="Combined cycle",P86="Boiler"),'Data Entry'!P46/'Data Entry'!P52,'Data Entry'!P49),"") -> 
D96: =1+D93 -> 21 | H96: =+IF(OR(P86="Combustion Turbine",P86="Engine"),"Nominal Plate Heat Rate","Heat Rate") -> Heat Rate | M96: NPHR | N96: MMBtu/MWh | P96: =+IF(P$30="SNCR",IF('Data Entry'!P52="","",'Data Entry'!P52),"") ->  | R96: =+IF(R$30="SNCR",IF('Data Entry'!P52="","",'Data Entry'!P52),"") -> 
D98: =1+D96 -> 22 | H98: Heat Rate Factor | M98: HRF | P98: =+IF(P$30="SNCR",IF(P96=0,"",P96/10),"") ->  | R98: =+IF(R$30="SNCR",IF(R96=0,"",R96/10),"") ->  | T98: Defined by eq. (1.6), Ref. 1, §1.3.1 - Design Parameters for Study-Level Estimates, p1-35 (p35-pdf), as the ratio of actual NPHR to a typical heat rate of 10 MMBtu/MWh, used in developing capital cost equations.
D102: =1+D98 -> 23 | H102: Annual Hrs of Operation | M102: top, ems unit | N102: hrs | P102: =+IF(P$30="SNCR",IF('Data Entry'!P111="","",'Data Entry'!P111),"") ->  | R102: =+IF(R$30="SNCR",IF('Data Entry'!P111="","",'Data Entry'!R111),"") ->  | T102: Data Entry - Emission Unit Annual Hrs of Operation. The air pollution control is assumed to operate at all times the emission unit is operating.
D105: =1+D102 -> 24 | H105: Heat Input Max Annual | M105: HI | N105: MMBtu/yr | P105: =+IF(P$30="SNCR",IF(P102="","",IF(P86="Combined cycle",P91*P102,P93*P96*P102)),"") ->  | R105: =+IF(R$30="SNCR",IF(R102="","",IF(P86="Combined cycle",R91*R102,R93*R96*R102)),"") ->  | T105: Calculated based on BMW and NPHR, or QB, multiplied by the emission unit top, ems unit.
D107: =1+D105 -> 25 | H107: Annual Actual MW Output | M107: Boutput | N107: MW/yr | P107: =+IF(P$30="SNCR",P93*P102,"") ->  | R107: =+IF(R$30="SNCR",R93*R102,"") ->  | T107: Power Output, BMW, (Line 20) multiplied by the Annual Hrs. of Operation, top, ems unit (Line 23).
G109: Operating Capacity Factors
D110: =1+D107 -> 26 | H110: Emission Unit Capacity Factor | M110: CF ems unit | P110: =+IF(P$30="SNCR",IF(P102=0,"",P107/(P93*8760)),"") ->  | R110: =+IF(R$30="SNCR",IF(R102=0,"",R107/(R93*8760)),"") ->  | T110: Per Ref. 1, § 1.3.1 - Design Parameters for Study-Level Estimates, System Capacity Factor, eq. (1.8a), p1-36 (p36-pdf). Since max. MW output is selected, eq. (1.8a) is equivalent with the selected hrs. of operation divided by 8,760 hrs.
D114: =1+D110 -> 27 | H114: SNCR Capacity Factor | M114: CF SNCR | P114: =+IF(P$30="SNCR",IF(P36="","",P36/P102),"") ->  | R114: =+IF(R$30="SNCR",IF(R36="","",R36/R102),"") ->  | T114: SNCR Capacity Factor is the ratio between SNCR operating time and emission unit operating time, similar to the SCR Capacity Factor defined by eq. (2.9), Ref. 2, §2.3.3 - System Capacity Factor, p2-53 (p54-pdf).
D118: =1+D114 -> 28 | H118: Total Capacity Factor | M118: CF Total | P118: =+IF(P$30="SNCR",IF(P114*P110=0,"",P114*P110),"") ->  | R118: =+IF(R$30="SNCR",IF(R114*R110=0,"",R114*R110),"") ->  | T118: Defined by eq. (1.7), Ref. 1, § 1.3.1 - Design Parameters for Study-Level Estimates, System Capacity Factor, page 1-35 (p35-pdf).
G120: Fuel Data
D121: =1+D118 -> 29 | H121: Fuel Type | P121: =+IF(P$30="SNCR",IF('Data Entry'!P56="","",'Data Entry'!P56),"") ->  | T121: =+IF(P121="Coal","Emission unit fuel type selected on Data Entry, Line 19. See also note on Line 19: Since Connecticut has only one coal-fired emission unit that burns a mix of bituminous and sub-bituminous coal only, "&"all specifications of this calculation for emission units burning coal are selected for bituminous coal.","Emmision unit fuel type selected on Data Entry, Line 19.") -> Emmision unit fuel type selected on Data Entry, Line 19.
D126: =1+D121 -> 30 | H126: Air Heater Factor | M126: AHF | P126: =+IF(P$30="SNCR",IF(AND(P121="Coal",'Data Entry'!P64=3,'Data Entry'!P64>3),1,0),"") ->  | R126: =+IF(R$30="SNCR",IF(AND(P121="Coal",'Data Entry'!P64=3,'Data Entry'!P64>3),1,0),"") ->  | T126: =+"Defined in Eq. (1.26), Ref 1, §1.4.1.1 - Utility Boilers, p1-46 (p46-pdf) & 1-47 (p47-pdf), as multiplier for Air Pre-Heater Cost. AHF=1, if bituminous coal and SO2>3lb/MMBtu=0 if not true."&IF(P121="Coal"," Note: Since Connecticut has only one coal-fired emission unit that burns a mix of bituminous and (sub)bituminous coal, AHF is ''0'', and the air pre-heater term drops out of the overall SNCR cost eq. for all CT emission units.","") -> Defined in Eq. (1.26), Ref 1, §1.4.1.1 - Utility Boilers, p1-46 (p46-pdf) & 1-47 (p47-pdf), as multiplier for Air Pre-Heater Cost. AHF=1, if bituminous coal and SO2>3lb/MMBtu=0 if not true.
D133: =1+D126 -> 31 | H133: =+IF(P121="Coal","Coal","Fuel")&" Factor" -> Fuel Factor | M133: =+IF(P121="Coal","Coal F","F(factor)") -> F(factor) | P133: =+IF(P$30="SNCR",1,"") ->  | R133: =+IF(R$30="SNCR",1,"") ->  | T133: Defined in eq's. (1.25) and (1.26), Ref 1, §1.4.1.1 - Utility Boilers, p1-46 (p46-pdf) and eq's (1.32) and (1.33), Ref 1, §1.4.1.3 - Industrial Boilers, p1-49 (p49-pdf) & 1-50 (p50-pdf), as "CoalF" multiplier for coal units. CoalF is replaced with a (Fuel) factor equal to 1, for oil- and gas-fired emission units. CoalF (or FuelF) multiplier applied to CT units is = 1.
D139: =1+D133 -> 32 | H139: Fuel High Heating Value | M139: HHV | N139: =+IF(P121="Natural Gas","Btu/ft³","Btu/lb") -> Btu/lb | P139: =+IF(P$30="SNCR",IF(P121="Natural Gas",VLOOKUP(MATCH(P121,fuels_id,0),fuels,tbl!$I$42,FALSE),IF(P121="Coal",VLOOKUP(MATCH(P121,fuels_id,0),fuels,tbl!$J$42,FALSE),IF(OR(P121="Natural Gas",P121="Coal",P121=""),"",VLOOKUP(MATCH(P121,fuels_id,0),fuels,tbl!$J$42,FALSE)))),"") ->  | R139: =+IF(R$30="SNCR",IF(P121="Natural Gas",VLOOKUP(MATCH(P121,fuels_id,0),fuels,tbl!$I$42,FALSE),IF(P121="Coal",VLOOKUP(MATCH(P121,fuels_id,0),fuels,tbl!$J$42,FALSE),IF(OR(P121="Natural Gas",P121="Coal",P121=""),"",VLOOKUP(MATCH(P121,fuels_id,0),fuels,tbl!$J$42,FALSE)))),"") ->  | T139: Per US DOE - Biomass Energy Databook: | X139: http://cta.ornl.gov/bedb/appendix_a.shtml
D141: =1+D139 -> 33 | H141: Fuel Cost | M141: Costfuel | N141: $/MMBtu | P141: =+IF(P$30="SNCR",VLOOKUP(MATCH(P121,fuels_id,0),fuels,tbl!$N$42,FALSE),"") ->  | R141: =+IF(R$30="SNCR",VLOOKUP(MATCH(P121,fuels_id,0),fuels,tbl!$N$42,FALSE),"") ->  | T141: Input from U.S. Energy Information Administration - EIA 2011-2012 data. In the web page below, select year in the Annual Energy Review archives and in Data categories select fuel:
T144: http://www.eia.gov/totalenergy/data/annual/index.cfm
D146: =1+D141 -> 34 | H146: Max. Fuel Consumption Rate | M146: =+IF(P121="Natural Gas","V(fuel)","m(fuel)") -> m(fuel) | N146: =+IF(P121="Natural Gas","CFH","lb/hr") -> lb/hr | P146: =+IF(P$30="SNCR",P105*10^6/P139/P102,"") ->  | R146: =+IF(R$30="SNCR",P105*10^6/P139/P102,"") ->  | T146: Calculated as hourly heat input (Line 24 divided by Line 23) and divided by the fuel HHV (Line 32), or Maximum Heat Rate Input (QB) on Line 19, divided by fuel HHV - Line 32.
D150: =1+D146 -> 35 | H150: Annual Fuel Consumption (estimate based on selected HHV) | M150: Annual Fuel | N150: =+IF(P121="Natural Gas","CF/yr","lb/yr") -> lb/yr | P150: =+IF(P$30="SNCR",IF(P146="","",P146*P102),"") ->  | R150: =+IF(R$30="SNCR",IF(R146="","",R146*R102),"") ->  | T150: Fuel consumption rate (Line 33) multiplied by the total annual hours of operation (Line 23).
G153: NOx Removal Performance
D154: =1+D150 -> 36 | H154: Uncontrolled NOx Emission Level | M154: NOxin | N154: lb/MMBtu | P154: =+IF(P$30="SNCR",IF('Data Entry'!P78="","",'Data Entry'!P78),"") ->  | R154: =+IF(R$30="SNCR",IF('Data Entry'!P78="","",'Data Entry'!P78),"") ->  | T154: Uncontrolled NOx rate, entered on Data Entry, Line 26.
D156: =1+D154 -> 37 | H156: Controlled NOx Outlet (required rate) | M156: NOxout | N156: lb/MMBtu | P156: =+IF(P$30="SNCR",IF('Data Entry'!P80="","",'Data Entry'!P80),"") ->  | R156: =+IF(R$30="SNCR",IF('Data Entry'!P80="","",'Data Entry'!P80),"") ->  | T156: Controlled NOx rate, as required by RCSA 22a-174-22e, and listed on Data Entry, Line 27.
D159: =1+D156 -> 38 | H159: Controlled NOx Outlet (selected) | M159: NOxout,sel | N159: lb/MMBtu | P159: =+IF(P$30="SNCR",MAX(P156,P43,P154-P38*P154),"") ->  | R159: =+IF(R$30="SNCR",MAX(R156,R43,R154-R38*R154),"") ->  | T159: =+"Determined as the highest among: the required controlled NOx out, the SNCR lowest attained NOx out rate, or the NOx out value based on the "&IF(P$30="SNCR",P38*100&"% ","")&"default efficiency." -> Determined as the highest among: the required controlled NOx out, the SNCR lowest attained NOx out rate, or the NOx out value based on the default efficiency.
D162: =1+D159 -> 39 | H162: NOx Removal Efficiency (selected) | M162: h NOxR,sel | N162: % | P162: =+IF(P$30="SNCR",IFERROR((P154-P159)/P154,""),"") ->  | R162: =+IF(R$30="SNCR",IFERROR((R154-R159)/R154,""),"") ->  | T162: Defined by eq. (1.10) Ref. 1, §1.3.1. - Design Parameters for Study-Level Estimates, NOx Removal Efficiency, p1-37 (p37-pdf) and calculated based on NOxin on Line 35 and the value of NOxout sel, on Line 37.
D166: =1+D162 -> 40 | H166: NOx Removed Hourly Rate | M166: NOxR/hr | N166: lb/hr | P166: =+IF(P$30="SNCR",IFERROR(P154*P162*P91,""),"") ->  | R166: =+IF(R$30="SNCR",IFERROR(R154*R162*R91,""),"") ->  | T166: Defined by eq. (1.12), Ref. 1, §1.3.1 - Design Parameters for Study-Level, NOx Removal Rates, page 1-37 (p37-pdf).
D169: =1+D166 -> 41 | H169: NOx Removed (annually) | M169: NOxR | N169: tons | P169: =+IF(P$30="SNCR",IFERROR((P154*P162*P91*P118*8760)/2000,""),"") ->  | R169: =+IF(R$30="SNCR",IFERROR((R154*R162*R91*R118*8760)/2000,""),"") ->  | T169: Defined by eq. (1.11), Ref. 1, §1.3 - Design Parameters for Study-Level, NOx Removal Rates, page 1-37 (p37-pdf).
E171: II. | F171: Reagent Calculations
G173: Reagent Data
D174: =1+D169 -> 42 | H174: Normalized Stoichiometric Ratio | M174: NSR | P174: =+IF(P$30="SNCR",IFERROR((2*P154+0.7)*P162/P154,""),"") ->  | R174: =+IF(R$30="SNCR",IFERROR((2*R154+0.7)*R162/R154,""),"") ->  | T174: Ratio of moles of equivalent NH3 injected to the moles of uncontrolled NOx, defined by empirical eq. (1.17), Ref. 1, §1.3.1 - Design Parameters for Study-Level, Normalized Stoichiometric Ratio, page 1-38 (P38-pdf).
D178: =1+D174 -> 43 | H178: Actual Stoichiometric Ratio | M178: ASR | P178: =+IF(P$30="SNCR",P174/P54,"") ->  | R178: =+IF(R$30="SNCR",R174/R54,"") ->  | T178: Ratio of moles of reagent reacted to the moles of uncontrolled NOx, defined by eq. (1.15), Ref. 1, §1.3.1 - Design Parameters for Study-Level, Normalized Stoichiometric Ratio, page 1-38 (P38-pdf).
D182: =1+D178 -> 44 | H182: Utilization | M182: Utilization | P182: =+IF(P$30="SNCR",IFERROR(P162/P174,""),"") ->  | R182: =+IF(R$30="SNCR",IFERROR(R162/R174,""),"") ->  | T182: Ratio of moles of reagent reacted to the mole injected - defined by eq. (1.16), Ref. 1, §1.3.1 - Design Parameters for Study-Level, Normalized Stoichiometric Ratio, page 1-38 (P38-pdf).
G185: Flow Rates
D186: =1+D182 -> 45 | H186: =+PROPER(P49)&" Consumption" -> Consumption | M186: ṁreagent | N186: lb/hr | P186: =+IF(P$30="SNCR",IFERROR(P154*P91*P162*$P$178*$P$52/'Data Entry'!$P$161,""),"") ->  | R186: =+IF(R$30="SNCR",IFERROR(R154*R91*R162*$R$178*$R$52/'Data Entry'!$P$161,""),"") ->  | T186: Eq. (1.18), Ref. 1, §1.3.1 - Design Parameters for Study-Level, Estimating Reagent Consumption and Tank Size, page 1-40 (p40-pdf).
H188: Aqueous Urea 50% Solution
D189: =1+D186 -> 46 | I189: Mass Flow Rate | M189: ṁsol | N189: lb/hr | P189: =+IF(P$30="SNCR",IFERROR(P186/$P$62,""),"") ->  | R189: =+IF(R$30="SNCR",IFERROR(R186/$R$62,""),"") ->  | T189: Eq. (1.19), Ref. 1, §1.3.1 - Design Parameters for Study-Level, Estimating Reagent Consumption and Tank Size, page 1-40 (p40-pdf).
D192: =1+D189 -> 47 | I192: Volumetric Flow Rate | M192: qsol | N192: gph | P192: =+IF(P$30="SNCR",IFERROR(P189*7.4805/$P$64,""),"") ->  | R192: =+IF(R$30="SNCR",IFERROR(R189*7.4805/$R$64,""),"") ->  | T192: Eq. (1.20), Ref. 1, §1.3.1 - Design Parameters for Study-Level, Estimating Reagent Consumption and Tank Size, page 1-40 (p40-pdf).
G194: Fuel Rq'd to Vaporize Water in Reagent Solution
D195: =1+D192 -> 48 | H195: Fuel to Prepare 10% Reagent Sol. | M195: ΔFuelReagent | N195: MMBtu/hr | P195: =+IF(P$30="SNCR",IFERROR(P58*P186*(1/P66-1)/10^6,""),"") ->  | R195: =+IF(R$30="SNCR",IFERROR(R58*R186*(1/R66-1)/10^6,""),"") ->  | T195: Additional fuel to evaporate the injected water in 10% urea solution, estimated by eq's (1.47) and (1.48), Ref.1, §1.4.2. - Total Annual Cost, Additional Fuel to Vaporize Water in Reagent Solution, pages: 1-54, 1-55 (p54-55, pdf).
G198: Storage
D199: =1+D195 -> 49 | H199: Storage Tank Volume | N199: gal | P199: =+IF(P$30="SNCR",IFERROR(P192*P68*24,""),"") ->  | R199: =+IF(R$30="SNCR",IFERROR(R192*R68*24,""),"") ->  | T199: Eq. (1.21), Ref. 1, §1.3.1 - Design Parameters for Study-Level, Estimating Reagent Consumption and Tank Size, page 1-41 (p41-pdf).
E201: III. | F201: Utilities
D203: =1+D199 -> 50 | H203: Power Consumption | M203: P | N203: kW | P203: =+IF(P$30="SNCR",IFERROR(0.47*P154*P174*P91/P96,""),"") ->  | R203: =+IF(R$30="SNCR",IFERROR(0.47*R154*R174*R91/R96,""),"") ->  | T203: Estimated by eq. (1.42), Ref. 1, §1.4.2. Total Annual Costs, Utilities, page 1-53 (p53-pdf).
D206: =1+D203 -> 51 | H206: Water Consumption | M206: q water | N206: gph | P206: =+IF(P$30="SNCR",P189/P57*(P62/P66-1),"") ->  | R206: =+IF(R$30="SNCR",R189/R57*(R62/R66-1),"") ->  | T206: Estimated by eq. (1.44), Ref. 1, §1.4.2. Total Annual Costs, Water Consumption, page 1-54 (p54-pdf).
E208: =+IF(Q121="Coal","IV.","") ->  | F208: =+IF(P121="Coal","Ash Disposal","") -> 
D210: =1+D206 -> 52 | H210: =+IF(P121="Coal","Coal Ash Disposal","") ->  | M210: =+IF(P121="Coal","ΔAsh","") ->  | N210: =+IF(P121="Coal","lb/hr","") ->  | P210: =+IF(P121="Coal",IF(P$30="SNCR",P195*'Data Entry'!$P$66*10^6/P139,""),"") ->  | R210: =+IF(P121="Coal",IF(R$30="SNCR",R195*'Data Entry'!$P$66*10^6/R139,""),"") ->  | T210: Disposal of ash in added fuel used to vaporize water in reagent solution, estimated by eq. (1.50), Ref. 1, §1.4.2. Total Annual Costs, Coal Ash Disposal, page 1-55 (p55-pdf).
E215: SNCR COST ESTIMATION
E217: TOTAL CAPITAL COST | T217: =+"Calculated with eq. (1-24), Ref. 1, §1.4.1.1 - Utility Boilers, Coal-fired Units, p1-45 (p45-pdf), or with eq. (1-28), Ref. 1, §1.4.1.2 - Utility Boilers, Oil- and gas-fired units,p1-47 (p47-pdf) for units ≥25MW)"&" and in addition, with the above cost adj. multiplier, for turbines and combined cycle units." -> Calculated with eq. (1-24), Ref. 1, §1.4.1.1 - Utility Boilers, Coal-fired Units, p1-45 (p45-pdf), or with eq. (1-28), Ref. 1, §1.4.1.2 - Utility Boilers, Oil- and gas-fired units,p1-47 (p47-pdf) for units ≥25MW) and in addition, with the above cost adj. multiplier, for turbines and combined cycle units.
E219: I. | F219: Total Capital Investment (TCI) Estimate
G221: Retrofit Factor
D222: =1+D210 -> 53 | H222: Selective Noncatalytic Reduction System | M222: RFSNCR | P222: =+IF(P$30="SNCR",IF('Data Entry'!P89="","",'Data Entry'!P89),"") ->  | T222: SNCR System Retrofit Factor entered on Data Entry page, Line 31.
G224: SNCR Partial Costs | P224: =+IF(P86="Boiler","Note:","") -> 
P225: =+IF(P86="Boiler","Connecticut has no industrial boliers and only one utility bolier. Therefore, SNCR partial costs for that unit are determined using EPA's formulas for utility boliers.","") -> 
D228: =1+D222 -> 54 | H228: Capital Cost of SNCR Base Unit | M228: SNCRcost | N228: $ | P228: =+IF(P$30="SNCR",IFERROR(IF(P121="Coal",220000*(P93*P98)^0.42*P133*P88*P77*P222,147000*(P93*P98)^0.42*P77*P222),""),"") ->  | R228: =+IF(R$30="SNCR",IFERROR(IF(P121="Coal",220000*(R91/10)^0.42*R133*R88*R77,147000*R77*(R91/10)^0.42),""),"") ->  | T228: =+IF(P$30="SNCR",IF(AND(P86="Boiler",P121="Coal"),"Calculated with eq. (1.25), Ref. 1, §1.4.1.1 - Utility Boilers, Coal-fired Units, page 1-46 (p46-pdf).","Calculated with eq. (1.29), Ref. 1, §1.4.1.2 - Utility Boilers, Oil- and gas-fired units, page 1-48 (p48-pdf)."),"") -> 
D231: =1+D228 -> 55 | H231: Balance of Plant Cost | M231: BOPCost | N231: $ | P231: =+IF(P$30="SNCR",IFERROR(IF($P$121="Coal",320000*P93^0.33*P166^0.12*P88*$P$222,213000*(P91/P96)^0.33*P166^0.12*$P$222),""),"") ->  | R231: =+IF(R$30="SNCR",IFERROR(IF($P$121="Coal",320000*R93^0.33*R166^0.12*R88*$P$222,213000*(R91/R96)^0.33*R166^0.12*$P$222),""),"") ->  | T231: =+IF(P$30="SNCR",IF(AND(P86="Boiler",P121="Coal"),"Calculated withEq. (1.27), Ref. 1, §1.4.1.1 - Utility Boilers, Coal-fired Units, page 1-47 (p47-pdf).","Calculated with Eq. (1.30), Ref. 1, §1.4.1.2 - Utility Boilers, Oil- and gas-fired units, page 1-48 (p48-pdf)."),"") -> 
D234: =1+D231 -> 56 | H234: =+IF(OR(AND(P86="Boiler",P121="Coal"),$P$86=""),"Air Pre-Heater Modification Cost","") -> Air Pre-Heater Modification Cost | M234: =+IF(AND(P86="Boiler",P121="Coal"),"APHC(cost)","") ->  | N234: =+IF(P$30="SNCR",IF(AND(P86="Boiler",P121="Coal"),"$",""),"") ->  | P234: =+IF(P$30="SNCR",IF(AND(P86="Boiler",P121="Coal"),69000*(P93*P98*P133)^0.78*P126*$P$222,""),"") ->  | R234: =+IF(R$30="SNCR",IF(AND(P86="Boiler",P121="Coal"),69000*(R93*R98*R133)^0.78*R126*$P$222,""),"") ->  | T234: =+IF(P$30="SNCR",IF(AND(P86="Boiler",P121="Coal"),"Eq. (1.26), Ref. 1 §1.4.1.1 - Utility Boilers, Coal-fired Units, page 1-46 (p46-pdf). APHC(cost) is zero for units burning coal with SO₂ content less than 3 lb/MMBtu.","Line 56 - intentionally left blank"),"") -> 
D237: =1+D234 -> 57 | G237: =+IF($P$86="Boiler","","Cost Adjustment Factor") -> Cost Adjustment Factor | M237: =+IF($P$86="Boiler","","CAF") -> CAF | P237: =+IF(P$30="SNCR",IF($P$86="Boiler","",IF($P$121="Natural Gas",1.1,IF($P$121="Coal",0,1.1))),"") ->  | R237: =+IF(R$30="SNCR",IF($P$86="Boiler","",IF($P$121="Natural Gas",1.1,IF($P$121="Coal",0,1.1))),"") ->  | T237: =+IF($P$86="Boiler","Line 57 - intentionally left blank",IF(P237=0,"Error - Emission units other than boliers are oil- and gas- fired units; Select other fuel than coal on Data Entry, Line 19","Multiplier used with the TCI for utility boilers so that it may be applied to all other units (i.e., engines and turbines). EPA has not provided a specific fomula for the turbines and engines in the 2016 referenced documents.")) -> Multiplier used with the TCI for utility boilers so that it may be applied to all other units (i.e., engines and turbines). EPA has not provided a specific fomula for the turbines and engines in the 2016 referenced documents.
D241: =1+D237 -> 58 | G241: Total Capital Investment | M241: TCI | N241: $ | P241: =+IF(P$30="SNCR",IFERROR(IF(P121="Coal",1.3*(P228+P234+P231),IF(P86="Boiler",1.3*(P228+P231),1.3*(P228+P231)*P237)),""),"") ->  | R241: =+IF(R$30="SNCR",IFERROR(IF(P121="Coal",1.3*(R228+R234+R231),1.3*(R228+R231)),""),"") ->  | T241: =+IF(P241=0,"Error - Check unit type selected on Data Entry , Line 10, and fuel on Data Entry, Line 19 - Only boilers are burning coal, all other emission units are oil- and gas-fired emission units. All field cost elements below are blank since TCI is zero by error. ",IF(P121="Coal","Calculated with eq. (1.24), Ref. 1, page 1-45 (p45-pdf) for utility boilers ≥25MW, on coal. ","Calculated with eq. (1.28), Ref. 1, page 1-47 (p47-pdf) for oil- and gas-fired utility boilers (≥25MW to 500 MW). ")&IF(G237="","","Eq. (1.28), is multiplied by CAF to estimate TCI for gas- and oil-fired turbines, combined cycle units and engines.")) -> Calculated with eq. (1.28), Ref. 1, page 1-47 (p47-pdf) for oil- and gas-fired utility boilers (≥25MW to 500 MW). Eq. (1.28), is multiplied by CAF to estimate TCI for gas- and oil-fired turbines, combined cycle units and engines.
E243: II. | F243: Annual Costs
G245: Direct Annual Elements Cost
D246: =1+D241 -> 59 | H246: Annual Maintenance | M246: AMC | N246: $/yr | P246: =+IF(P$30="SNCR",IF(P241="","",0.015*P241),"") ->  | R246: =+IF(R$30="SNCR",IF(R241="","",0.015*R241),"") ->  | T246: Annual maintenance labor and material (including nozzle tips for injectors) is assumed 1.5% of TCI, per Ref. 1, §1.4.2 -Total Annual Costs, Maintenance, eq. (1.39), page 1-52 (p52-pdf).
D250: =1+D246 -> 60 | H250: Annual Reagent Cost | M250: ARC | N250: $/yr | P250: =+IF(P$30="SNCR",IF(P241="","",IFERROR(P192*P118*8760*'Data Entry'!$P$150,"")),"") ->  | R250: =+IF(R$30="SNCR",IF(R241="","",IFERROR(R192*R118*8760*'Data Entry'!$P$150,"")),"") ->  | T250: Calculated based on 50% sol. urea consumption (in gal/yr) and specific cost, per eq's. (1.40) and (1.41), Ref. 1 §2.4.2. - Total Annual Cost, p1-53 (p53-pdf).
D253: =1+D250 -> 61 | H253: Annual Electricity | M253: AEC | N253: $/yr | P253: =+IF(P$30="SNCR",IF(P241="","",IFERROR(P203*P118*8760*'Data Entry'!$P$143,"")),"") ->  | R253: =+IF(R$30="SNCR",IF(R241="","",IFERROR(R203*R118*8760*'Data Entry'!$P$143,"")),"") ->  | T253: Based on the annual power consumption (P, Line 50), multiplied by the control operating time, top,control, Line 3 (or equivalent CFTotal x 8,760) and electricity specific cost (Data Entry, Line 41), per eq (1.43), Ref. 1 § 1.4.2. - Total Annual Cost, page 1-53 (p53-pdf).
D258: =1+D253 -> 62 | H258: Annual Water Cost | M258: AWC | N258: $/yr | P258: =+IF(P$30="SNCR",IF(P241="","",IFERROR(P206*P118*8760*'Data Entry'!$P$146,"")),"") ->  | R258: =+IF(R$30="SNCR",IF(R241="","",IFERROR(R206*R118*8760*'Data Entry'!$P$146,"")),"") ->  | T258: Annual water consumption times water specific cost, per eq. (1.46), Ref. 1, §1.4.2. - Total Annual Cost, page 1-54 (p54-pdf).
D261: =1+D258 -> 63 | H261: Annual ΔFuel Reagent Cost | M261: ΔFuelReagent | N261: $/yr | P261: =+IF(P$30="SNCR",IF(P241="","",IFERROR(P195*P36*P141,"")),"") ->  | R261: =+IF(R$30="SNCR",IF(R241="","",IFERROR(R195*R36*R141,"")),"") ->  | T261: Per eq. (1.49), Ref. 1, §1.4.2. - Total Annual Cost, page 1-55 (p55-pdf).
D263: =1+D261 -> 64 | H263: =+IF($P$121="Coal","Annual ΔAsh Cost","") ->  | M263: =+IF(P121="Coal","ΔAsh Cost","") ->  | N263: =+IF($P$121="Coal","$/yr","") ->  | P263: =+IF(P$30="SNCR",IF(P241="","",IF($P$121="Coal",P210*P36/2000*P74,"")),"") ->  | R263: =+IF(R$30="SNCR",IF(R241="","",IF($P$121="Coal",R210*R36/2000*R74,"")),"") ->  | T263: =+IF($P$121="Coal","Per eq. (1.51), Ref. 1, §1.4.2. - Total Annual Cost, page 1-56 (p56-pdf).","Line 64 - intentionally left blank") -> Line 64 - intentionally left blank
D265: =1+D263 -> 65 | G265: Direct Annual Cost - DAC | M265: DAC | N265: =+IF($P$121="Coal","$/yr","") ->  | P265: =+IF(P$30="SNCR",IF(P241="","",IFERROR(P246+P250+P253+P258+P261+IF($P$121="Coal",P263,0),"")),"") ->  | R265: =+IF(R$30="SNCR",IF(R241="","",IFERROR(R246+R250+R253+R258+R261+IF($P$121="Coal",R263,0),"")),"") ->  | T265: Sum of the above direct annual costs, Line 59 through Line 64, per eq. (1.38), Ref. 1, §2.4.2.-Total Annual Cost, page 1-52, (p52-pdf).
G267: Indirect Annual Cost (IDAC)
D268: =1+D265 -> 66 | H268: Administrative Charges | M268: AC | N268: $/yr | P268: =+IF(P$30="SNCR",IFERROR(0.03*(0+0.4*P246),""),"") ->  | R268: =+IF(R$30="SNCR",IFERROR(0.03*(0+0.4*R246),""),"") ->  | T268: Per eq. (1.53), Ref. 1 §1.4.2. - Total Annual Cost, page 1-56 (p56-pdf).
D270: =1+D268 -> 67 | H270: Capital Recovery | M270: CR | N270: $/yr | P270: =+IF(P$30="SNCR",IFERROR('Data Entry'!P137*P241,""),"") ->  | R270: =+IF(R$30="SNCR",IFERROR('Data Entry'!P137*R241,""),"") ->  | T270: Per eq. (1.54), Ref. 1 §1.4.2. - Total Annual Cost, page 1-57 (p57-pdf).
D272: =1+D270 -> 68 | H272: Indirect Annual Costs | M272: IDAC | N272: $/yr | P272: =+IF(P$30="SNCR",IFERROR(P270+P268,""),"") ->  | R272: =+IF(R$30="SNCR",IFERROR(R270+R268,""),"") ->  | T272: Total of the above indirect costs, Line 66 and Line 67, per eq. (1.52), Ref. 1 §1.4.2. - Total Annual Cost, page 1-56 (p56-pdf).
D275: =1+D272 -> 69 | G275: Total Annual Cost | M275: TAC1 | P275: =+IF(P$30="SNCR",IFERROR(P265+P272,""),"") ->  | R275: =+IF(R$30="SNCR",IFERROR(R265+R272,""),"") ->  | T275: Total of direct and indirect costs, per eq.(1.56), Ref. 1, §1.4.2-Total Annual Costs, page 1-57(p57-pdf).
D278: =1+D275 -> 70 | E278: III. | F278: NOx Removal per year | M278: NOx R | N278: tons | P278: =+IF(P$30="SNCR",IF(P241="","",P169),"") ->  | R278: =+IF(R$30="SNCR",IF(R241="","",R169),"") ->  | T278: Tons of NOx removed calculated above, on Line 41.
E280: IV. | F280: Control Cost Effectiveness
D282: =1+D278 -> 71 | G282: Base Year | P282: =+IF(P$30="SNCR",'Data Entry'!P126,"") ->  | T282: Data Entry, Line 36 - Selected base year of EPA's cost analysis.
D283: =1+D282 -> 72 | H283: Cost Effectiveness | M283: Costeffect,$2012 | N283: 2012$/ton NOxR | P283: =+IF(P$30="SNCR",IF(P241="","",P275/P278),"") ->  | R283: =+IF(R$30="SNCR",IF(R241="","",R275/R278),"") ->  | T283: Control cost effectiveness based on TAC divided by the annual tons of NOx removed, per eq. (1.57), Ref. 1, §1.4.2. - Total Annual Cost, page 1-57 (p57-pdf).
D286: =1+D283 -> 73 | G286: Year Control is effective | P286: =+IF(P$30="SNCR",'Data Entry'!$P$84,"") ->  | T286: Year control is effective (or current year), as entered on Data Entry, Line 28.
D287: =1+D286 -> 74 | H287: Cost Effectiveness | M287: Costeffect,yr | N287: $/ton NOxR | P287: =+IF(P$30="SNCR",IF(P241="","",P283*'Data Entry'!$P$85),"") ->  | R287: =+IF(R$30="SNCR",IF(R241="","",R283*'Data Entry'!$P$85),"") ->  | T287: Control cost effectiveness adjusted for the year control is effective (or current year).

Sheet HPWI
Z5: Revision: | AA5: 02
Z6: Rev. Date: | AA6: 2016-08-31
K9: AIR POLLUTION CONTROL COST EFFECTIVENESS ASSESSMENT FOR USE WITH RCSA SECTION 22a-174-22e(h)
R10: References: | S10: 1 | T10: EPA Air Pollution Control Cost Manual - Seventh Edition, Section 4 - NOx Controls: Chapter 1 - Selective Noncatalytic Reduction, May 2016.
S12: =1+S10 -> 2 | T12: EPA Air Pollution Control Cost Manual - Seventh Edition, Section 4 - NOx Controls: Chapter 2 - Selective Catalytic Reduction, May 2016.
K14: HIGH PRESSURE WATER INJECTION | S14: =1+S12 -> 3 | T14: EPA Air Pollution Control Cost Manual - Sixth Edition (EPA 452/B-02-001), January 2002.
S16: =1+S14 -> 4 | T16: Alternative Control Techniques Document - NOx Emissions from Stationary Gas Turbines - EPA ACT Document No.: EPA-453/R-93-007.
S18: =1+S16 -> 5 | T18: U.S Department of Labor - Bureau of Labor Statistics: CPI Inflation Calculator.
D20: Line | F20: Item Description | M20: Symbol | N20: Units | P20: Input | T20: Comments
P21: Column 1. | R21: Column 2.
P22: Default Operation | R22: Limited Operation
E25: HPWI ASSUMPTIONS | T25: =+IF('Data Entry'!P43="Yes","","Note:") -> Note:
T26: =+IF('Data Entry'!P43="Yes","","Select HPWI on Data Entry, Line 15, in order to see control cost effectiveness calculation.") -> Select HPWI on Data Entry, Line 15, in order to see control cost effectiveness calculation.
E27: I. | F27: Air Pollution Control Assumptions
G29: Control Unit Specifications
D30: 1 | H30: Control Type | P30: =+IF('Data Entry'!P43="Yes",IF(OR('Data Entry'!P56="",'Data Entry'!P56="Coal",'Data Entry'!P78="",'Data Entry'!P80=""),"",IF(LEFT('Data Entry'!T56,5)="Error","","HPWI")),"") ->  | R30: =+IF(P30="","",IF(AND('Data Entry'!P43="Yes",'Data Entry'!R111>0),"HPWI","")) ->  | T30: =IF(AND('Data Entry'!P43="Yes",OR('Data Entry'!P$22="",'Data Entry'!P$24="",'Data Entry'!P$29="",'Data Entry'!P$31="",'Data Entry'!P$32="",AND('Data Entry'!P$46="",'Data Entry'!P$49=""),'Data Entry'!P$52="",'Data Entry'!P$56="",'Data Entry'!P$62="",'Data Entry'!P$64="",'Data Entry'!P$66="",'Data Entry'!P$78="",'Data Entry'!P$80="",'Data Entry'!P$84="",'Data Entry'!P$85="",'Data Entry'!P$90="",'Data Entry'!P$143="",'Data Entry'!P$146="")),"Error: Check Data Entry page and ensure that HPWI is selected on Line 15 and all other required fields are specified. ",IF(AND('Data Entry'!P56="coal",R30=""),"Note: HPWI Cost Effectiveness Calculation is disabled for emission units on coal, since no Connecticut unit burning coal will install HPWI to control NOx emissions.",IF(AND('Data Entry'!P43="Yes",'Data Entry'!R111>0),"HPWI cost effectiveness calculation is displayed down the column, for both ''Default Operation'' and ''Limited Operation''.","HPWI cost effectiveness calculation is displayed down the column, for ''Default Operation''. To show calculation on ''Limited Operation'' colum, enter no. of hours on Data Entry page Line 31, Column 2, otherwise the entire column is blank."))) -> HPWI cost effectiveness calculation is displayed down the column, for ''Default Operation''. To show calculation on ''Limited Operation'' colum, enter no. of hours on Data Entry page Line 31, Column 2, otherwise the entire column is blank.
D34: =1+D30 -> 2 | H34: Number of HPWI per Combustion Unit | M34: NHPWI | P34: =+IF(P$30="HPWI",1,"") ->  | R34: =+IF(R$30="HPWI",1,"") ->  | T34: Selected design criteria: one HPWI system per emission unit.
D36: =1+D34 -> 3 | H36: HPWI Operating Time | M36: top, control | N36: hrs | P36: =+IF(P$30="HPWI",'Data Entry'!P119*24,"") ->  | R36: =+IFERROR(IF(R$30="HPWI",'Data Entry'!R119*24,""),"") ->  | T36: Air Pollution Control Annual Hrs of Operation, as entered on Data Entry, Line 34.
D38: =1+D36 -> 4 | H38: HPWI Removal Efficiency (default value) | M38: h NOxR | N38: % | P38: =+IF(P$30="HPWI",60%,"") ->  | R38: =+IF(R$30="HPWI",60%,"") ->  | T38: Selected 60% as default. Control efficiency needs to be recalculated if NOxout falls below the HPWI attainable limit.
D41: =1+D38 -> 5 | H41: HPWI Lowest Attained NOxout Rate | M41: NOxout, min | N41: lb/MMBtu | P41: =+IF(P$30="HPWI",0.17,"") ->  | R41: =+IF(R$30="HPWI",0.17,"") ->  | T41: Per Ref. 4, §5.1.4 - Achievable NOx Emissions Using Wet Controls, page 5-53 (p144-pdf), 0.17 lb/MMBtu approx. corresponds to 42 ppm (for both natural gas and oils) and is considered a practical achievable lowest NOx rate of a HPWI system.
E43: II. | F43: Reagent and Reagent Solutions Specifications
G45: Water Properties
D46: =1+D41 -> 6 | H46: Water Standard Density | M46: ρwater | N46: lb/gal | P46: =+IF(P$30="HPWI",VLOOKUP(MATCH(LEFT(H46,5),p_id,0),prp,tbl!$H$17,FALSE),"") ->  | R46: =+IF(R$30="HPWI",VLOOKUP(MATCH(LEFT(H46,5),p_id,0),prp,tbl!$H$17,FALSE),"") ->  | T46: Defined in eq. (1.44), Ref. 1 (SNCR), §1.4.2-Total Annual Cost, p1-54 (p54-pdf).
D47: =1+D46 -> 7 | H47: Water Heat of Vaporization (at 310ºF) | M47: Hv | N47: Btu/lb | P47: =+IF(P$30="HPWI",VLOOKUP(MATCH(LEFT(H47,5),p_id,0),prp,tbl!$I$17,FALSE),"") ->  | R47: =+IF(R$30="HPWI",VLOOKUP(MATCH(LEFT(H47,5),p_id,0),prp,tbl!$I$17,FALSE),"") ->  | T47: Per Ref. 1 (SNCR), §1.4.2 - Total Annual Cost, Additional Fuel to Vaporize Water in Reagent Solution, eq. (1.47) pages 1-54 & 1-55 (p54-p55, pdf); Note: 310ºF is the representative temperature for an exiting flue gas.
E49: III. | F49: Specific Economic Factors and Costs
G51: Capital Cost Elevation Factor
D52: =1+D47 -> 8 | H52: Elevation Factor | M52: ELEVF | P52: =+IF(P$30="HPWI",IF('Data Entry'!P29="","",14.696/(14.696-0.0005*'Data Entry'!P29)),"") ->  | R52: =+IF(R$30="HPWI",IF('Data Entry'!P29="","",14.696/(14.696-0.0005*'Data Entry'!P29)),"") ->  | T52: Multiplier defined by eq. (1.22), Ref. 1 (SNCR), §1.4.1-TCI, p1-41 (p41-pdf) and by eq's. (2.39a) & (2.39b), Ref. 2 (SCR), §2.4.1-TCI, p2-64 & p2-65 (p65/p66-pdf), to be also applied to HPWI.
G55: Cost Adjustment Multiplier 2012$/1990$
D56: =1+D52 -> 9 | H56: Consumer Price Index Inflation | M56: CPI Inflation | N56: 2012$/1990$ | P56: =+IF(P$30="HPWI",1.76,"") ->  | R56: =+IF(R$30="HPWI",1.76,"") ->  | T56: CPIInflation to convert 1990$ to 2012$ (base year of 2016 EPA's SNCR & SCR Cost Manuals) - see Ref. 5 web link.
G58: HPWI Water Treatment and Disposal Costs
D59: =1+D56 -> 10 | H59: Water Treatment Cost, $/gal | M59: WTC$/gal | N59: $/gal | P59: =+IF(P$30="HPWI",1.97/1000*P56,"") ->  | R59: =+IF(R$30="HPWI",1.97/1000*R56,"") ->  | T59: Water Treatment Cost, WTC$/gal, in 1990$, published on Table 6-3, Ref. 4, p6-213 (p304-pdf), taken as default, times CPIInflation, to convert in 2012$.
D62: =1+D59 -> 11 | H62: Water Treatment Labor Cost, $/gal | M62: WTLC$/gal | N62: $/gal | P62: =+IF(P$30="HPWI",0.7/1000*P56,"") ->  | R62: =+IF(R$30="HPWI",0.7/1000*R56,"") ->  | T62: Water Treatment Labor Cost, WTLC$/gal, in 1990$, published on Table 6-5, Ref. 4, p6-222 (p313-pdf), taken as default, times CPIInflation, to convert in 2012$.
D65: =1+D62 -> 12 | H65: Water Disposal Cost, $/gal | M65: WDC$/gal | N65: $/gal | P65: =+IF(P$30="HPWI",3.82/1000*P56,"") ->  | R65: =+IF(R$30="HPWI",3.82/1000*R56,"") ->  | T65: Water Disposal Cost, WDC$/gal, in 1990$, published on Table 6-3, Ref. 4, p6-213 (p304-pdf), taken as default, times CPIInflation., to convert in 2012$.
G67: Labor Costs
D68: =1+D65 -> 13 | H68: Number of hours of operator labor | M68: top, labor | N68: hrs/day | P68: =+IF(P$30="HPWI",4,"") ->  | R68: =+IF(P$30="HPWI",4,"") ->  | T68: Per Ref. 2, § 2.5 & 2.6-Ex. Problem(s) 1 and 2, p2-80(p81-pdf) and p2-88(p89-pdf).
D70: =1+D68 -> 14 | H70: Labor Rate | M70: LR | N70: $/hr | P70: =+IF(P$30="HPWI",'Data Entry'!$P$153,"") ->  | R70: =+IF(R$30="HPWI",'Data Entry'!$P$153,"") ->  | T70: EPA suggested "Labor Rate" listed on Data Entry, Line 45.
E73: HPWI SIZING
E75: I. | F75: Emission Unit Performance Data at 8760 hrs
G77: Emission Unit Data
D78: =1+D70 -> 15 | H78: Unit Type | P78: =+IF(P$30="HPWI",IF('Data Entry'!P32="","",'Data Entry'!P32),"") ->  | T78: Emission unit type selected on Data Entry page Line 10.
D80: =1+D78 -> 16 | H80: Maximum Heat Rate Input | M80: QB | N80: MMBtu/hr | P80: =+IF(P$30="HPWI",IF(OR(P78="Combined cycle",P78="Boiler"),'Data Entry'!P46,IFERROR('Data Entry'!P49*'Data Entry'!P52,"")),"") ->  | R80: =+IF(R$30="HPWI",IF(OR(P78="Combined cycle",P78="Boiler"),'Data Entry'!P46,IFERROR('Data Entry'!P49*'Data Entry'!P52,"")),"") ->  | T80: =+IF(T81="","Space intentionally left blank","") -> Space intentionally left blank
T81: =+IF(P30="","",IF(P80='Data Entry'!P46,"","Error: Check, Max. Heat Rate Input should be "&P80&" MMBtu/hr, instead of "&IF('Data Entry'!P46="","''Blank''",'Data Entry'!P46)&" MMBtu/hr, as selected on ''Data Entry'' page, if NPHR is listed as "&'Data Entry'!P52&" MMBtu/MWh"&" and Nominal Power Output is "&'Data Entry'!P49&" MW.")) -> 
D82: =1+D80 -> 17 | H82: Power Output (MW Rating) at full load capacity. | M82: BMW | N82: MW | P82: =+IF(P$30="HPWI",IF(OR(P78="Combined cycle",P78="Boiler"),'Data Entry'!P46/'Data Entry'!P52,'Data Entry'!P49),"") ->  | R82: =+IF(R$30="HPWI",IF(OR(P78="Combined cycle",P78="Boiler"),'Data Entry'!P46/'Data Entry'!P52,'Data Entry'!P49),"") -> 
D84: =1+D82 -> 18 | H84: =+IF(OR(P78="Combustion Turbine",P78="Engine"),"Nominal Plate Heat Rate","Net Plant Heat Rate") -> Net Plant Heat Rate | M84: NPHR | N84: MMBtu/MWh | P84: =+IF(P$30="HPWI",IF('Data Entry'!P52="","",'Data Entry'!P52),"") ->  | R84: =+IF(R$30="HPWI",IF('Data Entry'!P52="","",'Data Entry'!P52),"") -> 
D86: =1+D84 -> 19 | H86: Annual Hrs of Operation | M86: top, ems unit | N86: hrs | P86: =+IF(P$30="HPWI",IF('Data Entry'!P111="","",'Data Entry'!P111),"") ->  | R86: =+IF(R$30="HPWI",IF('Data Entry'!R111="","",'Data Entry'!R111),"") ->  | T86: Data Entry page - Emission Unit Annual Hrs of Operation, Line 33. The air pollution control is assumed to operate any time the emission unit is operating.
D89: =1+D86 -> 20 | H89: Heat Input Max Annual | M89: HI | N89: MMBtu/yr | P89: =+IF(P$30="HPWI",IF(P86="","",IF(P78="Combined cycle",P80*P86,P82*P84*P86)),"") ->  | R89: =+IF(R$30="HPWI",IF(R86="","",IF(P78="Combined cycle",R80*R86,R82*R84*R86)),"") ->  | T89: Calculated based on BMW and NPHR, or QB, multiplied by top,ems unit.
D91: =1+D89 -> 21 | H91: Annual Actual MW Output | M91: Boutput | N91: MW/yr | P91: =+IF(P$30="HPWI",P82*P86,"") ->  | R91: =+IF(R$30="HPWI",R82*R86,"") ->  | T91: Power Output, BMW, (Line 32) multiplied by top, ems unit (Line 35).
G93: Operating Capacity Factors
D94: =1+D91 -> 22 | H94: Emission Unit Capacity Factor | M94: CF ems unit | P94: =+IF(P$30="HPWI",IF('Data Entry'!P111=0,"",'Data Entry'!P111/8760),"") ->  | R94: =+IF(R$30="HPWI",IF('Data Entry'!R111=0,"",'Data Entry'!R111/8760),"") ->  | T94: See Ref. 1, § 1.3.1, eq. (1.8a), p1-36 (p36-pdf) and Ref. 2 §2.3.3, eq. (2.8a), p2-53 (p54-pdf).
D97: =1+D94 -> 23 | H97: HPWI Capacity Factor | M97: CF HPWI | P97: =+IF(P$30="HPWI",IF(P36="","",P36/P86),"") ->  | R97: =+IF(R$30="HPWI",IF(R36="","",R36/R86),"") ->  | T97: See eq. (2.9), Ref. 2, §2.3.3 - System Capacity Factor, page 2-53 (p54-pdf)
D99: =1+D97 -> 24 | H99: Total Capacity Factor | M99: CF Total | P99: =+IF(P$30="HPWI",IF(P97*P94=0,"",P97*P94),"") ->  | R99: =+IF(R$30="HPWI",IF(R97*R94=0,"",R97*R94),"") ->  | T99: See Ref. 1, § 1.3.1, eq. (1.7), p1-35 (p35-pdf) and Ref. 2, §2.3.3, eq. (2.7), p2-53 (p54-pdf).
G101: Fuel Data
D102: =1+D99 -> 25 | H102: Fuel Type | P102: =+IF(P$30="HPWI",IF('Data Entry'!P56="","",'Data Entry'!P56),"") ->  | T102: Data Entry input, Line 19.
D104: =1+D102 -> 26 | H104: Fuel Low Heating Value | M104: LHV | N104: BTU/lb | P104: =+IF(P$30="HPWI",VLOOKUP(MATCH(P102,fuels_id,0),fuels,tbl!$G$42,FALSE),"") ->  | R104: =+IF(R$30="HPWI",VLOOKUP(MATCH(P102,fuels_id,0),fuels,tbl!$G$42,FALSE),"") ->  | T104: Per US DOE Biomass Energy Databook: | X104: http://cta.ornl.gov/bedb/appendix_a.shtml
T105: Note: Cost analysis in ACT (Ref. 4) is based on fuel LHV.
D107: =1+D104 -> 27 | H107: Fuel Cost | M107: Costfuel | N107: $/MMBtu | P107: =+IF(P$30="HPWI",VLOOKUP(MATCH(P102,fuels_id,0),fuels,tbl!$N$42,FALSE),"") ->  | R107: =+IF(R$30="HPWI",VLOOKUP(MATCH(HPWI!$P$102,fuels_id,0),fuels,tbl!$N$42,FALSE),"") ->  | T107: Input from U.S. Energy Information Administration - EIA 2011-2012 data. In the web page below, select year in the Annual Emery Review archives and in Data Categories select fuel:
T110: http://www.eia.gov/totalenergy/data/annual/index.cfm
D112: =1+D107 -> 28 | H112: Max. Fuel Consumption Rate | M112: =+IF(P102="Natural Gas","V(fuel)","m(fuel)") -> m(fuel) | N112: =+IF(P102="Natural Gas","CFH","lb/hr") -> lb/hr | P112: =+IF(P$30="HPWI",P89*10^6/P104/P86,"") ->  | R112: =+IF(R$30="HPWI",IF(P102="Natural Gas",R89*10^6/R104/R86,IF(P102="","",IF(P102="Natural Gas","",IF(P102="Coal",R89*10^6/R104/R86,R89*10^6/R104/R86)))),"") ->  | T112: Hourly heat input divided by the fuel LHV, or Maximum Heat Rate Input (QB) divided by fuel LHV.
D115: =1+D112 -> 29 | H115: Annual Fuel Consumption | M115: Annual Fuel | N115: =+IF(P102="Natural Gas","CF/yr","lb/yr") -> lb/yr | P115: =+IF(P$30="HPWI",IF(P112="","",P112*P86),"") ->  | R115: =+IF(R$30="HPWI",IF(R112="","",R112*R86),"") ->  | T115: Equal to Max. Fuel Consumption Rate, Line 28, multiplied by Annual Hours of Operation, Line 19.
H116: (estimate based on selected LHV)
G118: NOx Removal Performance
D119: =1+D115 -> 30 | H119: Uncontrolled NOx Emission Level | M119: NOxin | N119: lb/MMBtu | P119: =+IF(P$30="HPWI",IF('Data Entry'!P78="","",'Data Entry'!P78),"") ->  | R119: =+IF(R$30="HPWI",IF('Data Entry'!P78="","",'Data Entry'!P78),"") ->  | T119: Uncontrolled NOx rate entered on Data Entry page, Line 26.
D121: =1+D119 -> 31 | H121: Controlled NOx Outlet (required) | M121: NOxout | N121: lb/MMBtu | P121: =+IF(P$30="HPWI",IF('Data Entry'!P80="","",'Data Entry'!P80),"") ->  | R121: =+IF(R$30="HPWI",IF('Data Entry'!P80="","",'Data Entry'!P80),"") ->  | T121: Controlled NOx rate, as required by RCSA 22a-174-22e, and listed on Data Entry, Line 27.
D124: =1+D121 -> 32 | H124: Controlled NOx Outlet (selected) | M124: NOxout,sel | N124: lb/MMBtu | P124: =+IF(P$30="HPWI",MAX(P121,P41,P119-P38*P119),"") ->  | R124: =+IF(R$30="HPWI",MAX(R121,R41,R119-R38*R119),"") ->  | T124: =+"Determined as the highest among: the required controlled NOx out, the HPWI lowest attained NOx out rate, or the NOx out value based on the "&IF(P$30="HPWI",P38*100&"% ","")&"default efficiency." -> Determined as the highest among: the required controlled NOx out, the HPWI lowest attained NOx out rate, or the NOx out value based on the default efficiency.
D127: =1+D124 -> 33 | H127: NOx Removal Efficiency (selected) | M127: h NOxR,sel | N127: % | P127: =+IF(P$30="HPWI",IFERROR((P119-P124)/P119,""),"") ->  | R127: =+IF(R$30="HPWI",IFERROR((R119-R124)/R119,""),"") ->  | T127: Defined by either eq. (1.10) Ref. 1, § 1.3.1. - Design Parameters for Study-Level Estimates, NOx Removal Efficiency, page 1-37 (p37-pdf) or eq. (2.10) Ref. 2, § 2.3.5 - NOx Removal Efficiency, page 2-54 (p55-pdf), and determined based on NOxin on Line 30 and NOxout sel, on Line 32.
D132: =1+D127 -> 34 | H132: NOx Removed Hourly Rate | M132: NOxR/hr | N132: lb/hr | P132: =+IF(P$30="HPWI",IFERROR(P119*P127*P80,""),"") ->  | R132: =+IF(R$30="HPWI",IFERROR(R119*R127*R80,""),"") ->  | T132: Applied the SNCR's eq. (1.12), Ref. 1, §1.3.1 - Design Parameters for Study-Level, NOx Removal Rates, page 1-37 (p37-pdf).
D135: =1+D132 -> 35 | H135: NOx Removed (annually) | M135: NOxR | N135: tons | P135: =+IF(P$30="HPWI",IFERROR((P119*P127*P80*P99*8760)/2000,""),"") ->  | R135: =+IF(R$30="HPWI",IFERROR((R119*R127*R80*R99*8760)/2000,""),"") ->  | T135: Defined either by SNCR's eq. (1.11), Ref. 1, §1.3 - Design Parameters for Study-Level, NOx Removal Rates, p1-37 (p37-pdf), or by SCR's eq. (2.11), Ref. 1, §2.3.6 - NOx Removal Rates, p2-54 (p55-pdf).
E138: II. | F138: Water Specifications Calculations
G140: Flow Rates
D141: =1+D135 -> 36 | H141: Estimated Water Flow Factor/Rate | M141: WFR | N141: lbwater/lbfuel | P141: =+IF(P$30="HPWI",0.7,"") ->  | R141: =+IF(R$30="HPWI",0.7,"") ->  | T141: Bulk average of the WFR data, HPWI control, in Table 6-2, Ref. 4, §6.0 - Control Costs, page 6-211, (p302-pdf).
D144: =1+D141 -> 37 | H144: Water Flow | M144: qwater | N144: gpm | P144: =+IF(P$30="HPWI",P112/60/VLOOKUP(MATCH(LEFT($H$144,5),p_id,0),prp,tbl!$H$17,FALSE)*P141,"") ->  | R144: =+IF(R$30="HPWI",R112/60/VLOOKUP(MATCH(LEFT($H$144,5),p_id,0),prp,tbl!$H$17,FALSE)*R141,"") ->  | T144: Based of Max. Fuel Consumption Rate, lb(fuel)/hr, on Line 28 and WFR, lb(water)/lb (fuel), on Line 36, in gal/min (gpm).
G146: Treatment System Capacity
D147: =1+D144 -> 38 | H147: Design Factor | M147: DF | P147: =+IF(P$30="HPWI",1.3,"") ->  | R147: =+IF(R$30="HPWI",1.3,"") ->  | T147: Recommended by a HPWI system supplier, per Table 6-2, footnote [c], Ref. 4, §6.0 - Control Costs, page 6-211, (p302-pdf).
D150: =1+D147 -> 39 | H150: Waste Stream Factor | M150: WSF | P150: =+IF(P$30="HPWI",1.29,"") ->  | R150: =+IF(R$30="HPWI",1.29,"") ->  | T150: Factor to account for waste stream, per same reference mentioned at Line 38.
D152: =1+D150 -> 40 | H152: Treatment System Design Capacity | M152: Qwater | N152: gpm | P152: =+IF(P$30="HPWI",P147*P150*P144,"") ->  | R152: =+IF(R$30="HPWI",R147*R150*R144,"") ->  | T152: Treatment system design capacity is the system water flow increased by the above two multipliers, on Line 38 and Line 39, respectively.
G154: Water Injection Electricity Consumption
D155: =1+D152 -> 41 | H155: Pumping Factor | M155: PF | N155: kW/gpm | P155: =+IF(P$30="HPWI",0.161,"") ->  | R155: =+IF(R$30="HPWI",0.161,"") ->  | T155: Per Ref. 4, pages 6-224, 6-225, (p3154-316, pdf), based on a pump head H = 200 psig, t(water) = 130ºF, 60% pump efficiency and 90 % electric motor efficiency.
D158: =1+D155 -> 42 | H158: Power Injection Pump | M158: P | N158: kW | P158: =+IF(P$30="HPWI",P155*P144,"") ->  | R158: =+IF(R$30="HPWI",R155*R144,"") ->  | T158: Determined as water flow (Line 37) multiplied by the pumping factor (Line 41).
D160: =1+D158 -> 43 | H160: Electricity HPWI Consumption | M160: E | N160: kWh | P160: =+IF(P$30="HPWI",P158*P36,"") ->  | R160: =+IF(R$30="HPWI",R158*R36,"") ->  | T160: Annual water injection electricity is the injection pump power times the annual HPWI hrs of operation.
G162: Water Injection Fuel Penalty
D163: =1+D160 -> 44 | H163: Fuel Penalty Impact | M163: FPpercentage | N163: % | P163: =+IF(P$30="HPWI",3.5%,"") ->  | R163: =+IF(R$30="HPWI",3.5%,"") ->  | T163: Per Ref. 4, page 6-223 (p314-pdf), is 3.5 % of Annual Heat Input, at WFR=1, for HPWI.
D166: =1+D163 -> 45 | H166: Fuel Penalty | M166: FP | N166: MMBtu/yr | P166: =+IF(P$30="HPWI",P89*P141*P163,"") ->  | R166: =+IF(R$30="HPWI",R89*R141*R163,"") ->  | T166: Annual fuel penalty, is the reduction percent (FPpercenrage x WFR) of the max. annual heat input, corrected for the actual WFR = 0.7 lbwater/lbfuel.
E170: HPWI COST ESTIMATION
E172: TOTAL CAPITAL COST
E174: I. | F174: Total Capital Investment (TCI) Estimate
G176: Retrofit Factor
D177: =1+D166 -> 46 | H177: High Pressure Water Injection System | M177: RFHPWI | P177: =+IF(P$30="HPWI",IF('Data Entry'!P90="","",'Data Entry'!P90),"") ->  | T177: HPWI System Retrofit Factor entered on Data Entry page, Line 32.
G179: HPWI Available Cost Data
D180: =1+D177 -> 47 | H180: HPWI 1990 Investment Cost | M180: TCI 1990$ | N180: 1990$ | P180: =+IF(P$30="HPWI",ROUNDUP((43.638*P82+191.14),0)*1000,"") ->  | R180: =+IF(R$30="HPWI",ROUNDUP((43.638*R82+191.14),0)*1000,"") ->  | T180: Cost estimate based on a linear variation of HPWI Systems TCI vs. unit nom. plate power capacity, BMW, on Line 15, per data in Table 6-5, Ref. 4, §6.0 - Control Costs, page 6-222, (p313-pdf).
D183: =1+D180 -> 48 | G183: Total Capital Investment | M183: TCI2012$ | N183: 2012$ | P183: =+IF(P$30="HPWI",P56*P180*P52*$P$177,"") ->  | R183: =+IF(R$30="HPWI",R56*R180*R52*$P$177,"") ->  | T183: 2012$ HPWI suggested cost is: 1990$ HPWI Cost (TCI1990$, Line 47) x (CPI2012$/1990$, Line 9) x (ELEVF, Line 8) x (RFHPWI, Line 46).
E185: II. | F185: Annual Costs
G187: Direct Annual Elements Cost | T187: Note: Direct Annual Elements Costs estimated below, are determined per Table 6-5, Ref. 4, §6.0 - Control Costs, page 6-222, (p313-pdf).
D190: =1+D183 -> 49 | H190: Annual Maintenance | M190: AMC | N190: $/yr | P190: =+IF(P$30="HPWI",IF(P183=0,"",P56*ROUNDUP((340*P82+23000)/1000,0)*1000),"") ->  | R190: =+IF(R$30="HPWI",IF(R183=0,"",R56*ROUNDUP((340*R82+23000)/1000,0)*1000),"") ->  | T190: Cost estimate based on a linear variation of HPWI Systems maintenance costs vs. nom. plate power capacity, BMW , per data in Table 6-5, Ref. 4, §6.0 - Control Costs, page 6-222, (p313-pdf).
D194: =1+D190 -> 50 | H194: Annual Electricity | M194: AEC | N194: $/yr | P194: =+IF(P$30="HPWI",IF(P183=0,"",P160*'Data Entry'!$P$143),"") ->  | R194: =+IF(R$30="HPWI",IF(R183=0,"",R160*'Data Entry'!$P$143),"") ->  | T194: Water injection electricity annual consumption, on Line 43, times the 2012 kWh cost, listed on Data Entry, Line 41.
D197: =1+D194 -> 51 | H197: Annual Water Cost | M197: AWC | N197: $/yr | P197: =+IF(P$30="HPWI",IF(P183=0,"",P144*60*P36*P150*'Data Entry'!$P$146),"") ->  | R197: =+IF(R$30="HPWI",IF(R183=0,"",R144*60*R36*R150*'Data Entry'!$P$146),"") ->  | T197: Based on actual water injection flow, qwater (Line 37), control operating time, top,control (Line 3), waste stream factor (suggested by system suppliers), WSF (Line 39) and water 2012$ specific cost, on Data Entry, Line 41, per Table 6-5, Ref. 4, page 6-222, (p313-pdf).
D202: =1+D197 -> 52 | H202: Fuel Penalty Cost | M202: FPcost | N202: $/yr | P202: =+IF(P$30="HPWI",IF(P183=0,"",P166*P107),"") ->  | R202: =+IF(R$30="HPWI",IF(R183=0,"",R166*R107),"") ->  | T202: Fuel penalty, FP (Line45),in MMBtu/hr times fuel specific cost, per EIA 2012$data, Costfuel (Line27).
D205: =1+D202 -> 53 | H205: Water Treatment Cost | N205: $/yr | P205: =+IF(P$30="HPWI",IF(P183=0,"",P144*60*P36*P150*P59),"") ->  | R205: =+IF(R$30="HPWI",IF(R183=0,"",R144*60*R36*R150*R59),"") ->  | T205: Based on actual water injection flow, qwater (Line 37), control operating time, top,control (Line 3), waste stream factor (suggested by system suppliers), WSF (Line 39) and specific costs, water treatment cost, WTC$/gal (Line 10), or water treatment labor cost, WTLC$/gal (Line 11) and water disposal cost, WDC$/gal (Line 12), respectively, per Table 6-5, Ref. 4, page 6-222, (p313-pdf).
D207: =1+D205 -> 54 | H207: Water Treatment Labor Cost | N207: $/yr | P207: =+IF(P$30="HPWI",IF(P183=0,"",P144*60*P36*P150*P62),"") ->  | R207: =+IF(R$30="HPWI",IF(R183=0,"",R144*60*R36*R150*R62),"") -> 
D209: =1+D207 -> 55 | H209: Water Disposal Cost | N209: $/yr | P209: =+IF(P$30="HPWI",IF(P183=0,"",P144*60*P36*P150*P65),"") ->  | R209: =+IF(R$30="HPWI",IF(R183=0,"",R144*60*R36*R150*R65),"") -> 
D212: =1+D209 -> 56 | G212: Direct Annual Cost - DAC | M212: DAC | N212: $/yr | P212: =+IF(P$30="HPWI",IF(P183=0,"",P190+P194+P197+P202+P205+P207+P209),"") ->  | R212: =+IF(R$30="HPWI",IF(R183=0,"",R190+R194+R197+R202+R205+R207+R209),"") ->  | T212: Sum of the above direct annual costs, Line 49 through Line 55.
G214: Indirect Annual Cost (IDAC)
D215: =1+D212 -> 57 | H215: Administrative Charges | M215: AC | N215: $/yr | P215: =+IF(P$30="HPWI",IFERROR(0.03*(0+0.4*P190),""),"") ->  | R215: =+IF(R$30="HPWI",IFERROR(0.03*(0+0.4*R190),""),"") ->  | T215: Calculated based on the same assumptions proposed for SCR, see eq. (2.69), Ref. 2, §2.4.2. - Total Annual Cost, page 2-78 (p79-pdf).
D218: =1+D215 -> 58 | H218: Capital Recovery | M218: CR | N218: $/yr | P218: =+IF(P$30="HPWI",IFERROR('Data Entry'!$P$137*P183,""),"") ->  | R218: =+IF(R$30="HPWI",IFERROR('Data Entry'!$P$137*R183,""),"") ->  | T218: Calculated based on the same eq. proposed for SCR, see eq. (2.70), Ref. 2, §2.4.2. - Total Annual Cost, page 2-79 (p80-pdf).
D221: =1+D218 -> 59 | H221: Indirect Annual Costs | M221: IDAC | N221: $/yr | P221: =+IF(P$30="HPWI",IFERROR(P218+P215,""),"") ->  | R221: =+IF(R$30="HPWI",IFERROR(R218+R215,""),"") ->  | T221: Total of the above indirect costs, Line 57 and Line 58.
D223: =1+D221 -> 60 | G223: Total Annual Cost | M223: TAC | N223: $/yr | P223: =+IF(P$30="HPWI",IF(P183=0,"",P221+P212),"") ->  | R223: =+IF(R$30="HPWI",R221+R212,"") ->  | T223: Total of direct and indirect costs, per eq. (1.55), Ref. 1 §1.4.2. page 1-53.
D225: =1+D223 -> 61 | E225: III. | F225: NOx Removal per year | M225: NOx R | N225: tons | P225: =+IF(P$30="HPWI",IF(P183=0,"",P135),"") ->  | R225: =+IF(R$30="HPWI",IF(R183=0,"",R135),"") ->  | T225: Tons of NOx removed calculated above, on Line 35.
E227: IV. | F227: Control Cost Effectiveness
D229: =1+D225 -> 62 | F229: Base Year | P229: =+IF(P$30="HPWI",'Data Entry'!P126,"") ->  | T229: Data Entry, Line 36 - Selected base year of EPA's cost analysis.
D230: =1+D229 -> 63 | G230: Cost Effectiveness | M230: Costeffect,$2012 | N230: 2012$/ton NOxR | P230: =+IF(P$30="HPWI",IF(P183=0,"",P223/P225),"") ->  | R230: =+IF(R$30="HPWI",IF(R183=0,"",R223/R225),"") ->  | T230: Control cost effectiveness based on TAC divided by the annual tons of NOx removed, per eq. (2.73), Ref. 2, §2.4.2. page 2-79 (p80-pdf).
D233: =1+D230 -> 64 | F233: Year Control is effective | P233: =+IF(P$30="HPWI",'Data Entry'!$P$84,"") ->  | T233: Year control is effective (or current year), as entered on Data Entry, Line 28.
D234: =1+D233 -> 65 | G234: Cost Effectiveness | M234: Costeffect,yr | N234: $/ton NOxR | P234: =+IF(P$30="HPWI",IF(P183=0,"",P230*'Data Entry'!$P$85),"") ->  | R234: =+IF(R$30="HPWI",IF(R183=0,"",R230*'Data Entry'!$P$85),"") ->  | T234: Control cost effectiveness adjusted for the year control is effective (or current year).
